Workbook

Sheet Capa
B2: Planilha de fundamentos - CPFF11
B3: Novembro/2021
B19: Conteúdo
B20: Carteira de FII
B21: Resultado Caixa
B22: Rentabilidade
B23: Liquidez
B24: Glossário
B27: “As informações contidas nesta apresentação não podem ser consideradas como única fonte de informações no processo decisório do investidor, que, antes de tomar qualquer decisão, deverá realizar uma avaliação minuciosa do produto e respectivos riscos, face aos seus objetivos pessoais e ao seu perfil de risco ("Suitability"). RENTABILIDADE PASSADA NÃO REPRESENTA GARANTIA DE RENTABILIDADE FUTURA. Assim, não é possível prever o desempenho futuro de um investimento a partir da variação de seu valor de mercado no passado. A Capitânia não assume que os investidores vão obter lucros, nem se responsabiliza pelas perdas. FUNDOS DE INVESTIMENTO NÃO CONTAM COM GARANTIA DO ADMINISTRADOR, DO GESTOR, DE QUALQUER MECANISMO DE SEGURO OU FUNDO GARANTIDOR DE CRÉDITO – FGC. É recomendada a leitura cuidadosa do Formulário de Informações Complementares e regulamento do fundo de investimento pelo investidor ao aplicar seus recursos. Não é autorizada a sua reprodução ou disponibilidade para circulação sem prévia autorização da Capitânia.”

Sheet Carteira FII
B2: Planilha de fundamentos - CPFF11
B3: Novembro/2021
A4: Capa
B5: Ativo | C5: Código B3 | D5: Segmento | E5: Volume (R$) | F5: (%) PL | G5: Emissão | J5: Segmento | K5: (% PL) | M5: Alocação por segmento (% PL)
B6: GTIS Brazil Logistics FII | C6: GTLG11 | D6: Logística | E6: 30162582.31 | F6: 0.07306789817 | G6: 476 | J6: Lajes Corporativas | K6: =SUMIF($D$6:$D$104,J6,$F$6:$F$104) -> 0.1952799078
B7: BLUE CAP LOGÍSTICA | C7: BLCP11 | D7: Logística | E7: 28026272.8 | F7: 0.0678927562 | G7: 476 | J7: Shoppings | K7: =SUMIF($D$6:$D$104,J7,$F$6:$F$104) -> 0.1554193626
B8: V2 FII | C8: VVPR11 | D8: Renda Urbana | E8: 25777426.5 | F8: 0.06244499742 | G8: 476 | J8: FII CRI | K8: 0.0260732435
B9: MULTI RENDA URBANA | C9: HBRH11 | D9: Lajes Corporativas | E9: 23440245.73 | F9: 0.0567832512 | G9: 476 | J9: Logística | K9: 0.2357026388
B10: LEGATUS SHOPPINGS | C10: LASC11 | D10: Shoppings | E10: 22687020 | F10: 0.05495858578 | G10: 476 | J10: Hotel | K10: 0.003566945506
B11: Pátria Edifícios Corporativos | C11: PATC11 | D11: Lajes Corporativas | E11: 16473316.3 | F11: 0.03990608581 | J11: Agronegócio | K11: 0.0006644483045
B12: Unidades Autônomas | C12: IDFI11 | D12: Residencial | E12: 12100000 | F12: 0.0293118659 | G12: 476 | J12: Renda Urbana | K12: 0.1346947874
B13: HSI MALLS | C13: HSML11 | D13: Shoppings | E13: 11491422.9 | F13: 0.02783760719 | J13: FOF | K13: 0.02449171247
B14: Newport Logística | C14: NEWL11 | D14: Logística | E14: 11418981.75 | F14: 0.02766212081 | G14: 476 | J14: Híbrido | K14: 0.01864840288
B15: Guardian Logística | C15: GALG11 | D15: Logística | E15: 8507795.52 | F15: 0.02060986458 | G15: 476 | J15: Residencial | K15: 0.03679501203
B16: HSI Renda Imobiliária | C16: HSRE11 | D16: Renda Urbana | E16: 7959802.5 | F16: 0.01928236888 | G16: 476 | J16: Outros | K16: 0.005237255246
B17: BTG Pactual Shoppings | C17: BPML11 | D17: Shoppings | E17: 7754932.97 | F17: 0.01878607895 | J17: Total | K17: =SUM(K6:K16) -> 0.8365737165
B18: TRX Real Estate | C18: TRXF11 | D18: Renda Urbana | E18: 7390095.5 | F18: 0.01790227176 | G18: 476
B19: General Shopping e Outlets do Brasil | C19: GSFI11 | D19: Shoppings | E19: 7208199.45 | F19: 0.01746163435
B20: MALLS BRASIL PLURAL | C20: MALL11 | D20: Shoppings | E20: 7035841.87 | F20: 0.01704410359
B21: Tishman Speyer Renda Corporativa FII | C21: TSER11 | D21: Lajes Corporativas | E21: 6000042.5 | F21: 0.01453491249 | G21: 476
B22: FII SuccesPar Varejo | C22: SPVJ11 | D22: Renda Urbana | E22: 5934705.51 | F22: 0.01437663571 | G22: 476
B23: HSI Logística FII | C23: HSLG11 | D23: Logística | E23: 5630403.06 | F23: 0.01363947268
B24: Castello Branco Office Park | C24: CBOP11 | D24: Lajes Corporativas | E24: 5058943.12 | F24: 0.01225512912
B25: GUARDIAN MULTIESTRATÉGIA IMOBILIÁRIA I | C25: GAME11 | D25: FII CRI | E25: 5000000 | F25: 0.01211234128 | G25: 476
B26: TRX Real Estate | C26: TRXF14 | D26: Renda Urbana | E26: 4768245 | F26: 0.01155092215 | G26: 476
B27: Vinci Shopping Centers | C27: VISC11 | D27: Shoppings | E27: 4502920.5 | F27: 0.01090818197 | G27: 476
B28: SANTANDER PAPÉIS IMOBILIÁRIOS CDI FII - SADI11 | C28: SADI11 | D28: FII CRI | E28: 4426408.56 | F28: 0.01072283423
B29: Tellux Properties | C29: TEPP11 | D29: Lajes Corporativas | E29: 4243058.46 | F29: 0.01027867443
B30: Panorama Properties FII | C30: PNPR13 | D30: Híbrido | E30: 3998100 | F30: 0.009685270335 | G30: 476
B31: XP Properties | C31: XPPR11 | D31: Lajes Corporativas | E31: 3737921.12 | F31: 0.009054995257
B32: XP Industrial | C32: XPIN11 | D32: Logística | E32: 3659313 | F32: 0.008864569582 | G32: 476
B33: Brascan Lajes Corporativas | C33: BMLC11 | D33: Lajes Corporativas | E33: 3508249.8 | F33: 0.008498623775
B34: Panorama Properties FII | C34: PNPR14 | D34: Híbrido | E34: 3000000 | F34: 0.007267404769 | G34: 476
B35: BlueMacaw Office Fund ll | C35: BLMO11 | D35: Lajes Corporativas | E35: 2990517.5 | F35: 0.007244433713 | G35: 476
B36: Rio Bravo Renda Corporativa | C36: RCRB11 | D36: Lajes Corporativas | E36: 2619544.53 | F36: 0.00634576347
B37: NAVI Total Return | C37: NAVT11 | D37: FOF | E37: 2518026 | F37: 0.006099838053
B38: Athena l FII | C38: FATN11 | D38: Lajes Corporativas | E38: 2234910.43 | F38: 0.005413999572 | G38: 476
B39: Newport Renda Urbana | C39: NEWU11 | D39: Lajes Corporativas | E39: 2162304 | F39: 0.0052381128
B40: BB Progressivo II | C40: BBPO11 | D40: Outros | E40: 2161950 | F40: 0.005237255246
B41: Panorama Desenvolvimento Logístico FII | C41: PNDL16 | D41: Logística | E41: 1996542 | F41: 0.004836559617 | G41: 476
B42: CAIXA RIO BRAVO FOFII II FII - CRFF11 | C42: CRFF11 | D42: FOF | E42: 1945009.78 | F42: 0.00471172445
B43: Vinci Imóveis Urbanos FII | C43: VIUR11 | D43: Renda Urbana | E43: 1844762.5 | F43: 0.004468878596 | G43: 476
B44: Autonomy Edificios Corporativos FII | C44: AIEC11 | D44: Lajes Corporativas | E44: 1836538.9 | F44: 0.004448957187
B45: CSHG IMOBILIÁRIO FOF FII - HGFF11 | C45: HGFF11 | D45: FOF | E45: 1751845.83 | F45: 0.004243790913
B46: Via Parque Shopping | C46: FVPQ11 | D46: Shoppings | E46: 1690372.45 | F46: 0.004094873601
B47: Panorama Desenvolvimento Logístico FII | C47: PNDL11 | D47: Logística | E47: 1665744 | F47: 0.004035211963 | G47: 476
B48: FOF INTEGRAL BREI FII - IBFF11 | C48: IBFF11 | D48: FOF | E48: 1585973.36 | F48: 0.00384197012
B49: BTG Pactual Corporate Office Fund | C49: BRCR11 | D49: Lajes Corporativas | E49: 1395703.8 | F49: 0.003381048151
B50: OURINVEST LOGÍSTICA FII - OULG11 | C50: OULG11 | D50: Logística | E50: 1388173.64 | F50: 0.003362806577
B51: Mogno Hotéis | C51: MGHT11 | D51: Hotel | E51: 1378989.04 | F51: 0.003340557175
B52: XP Exeter Desenvolvimento Logístico | C52: XPEX11 | D52: Lajes Corporativas | E52: 1370302.97 | F52: 0.003319515446 | G52: 476
B53: XP IDEA!ZARVOS FII | C53: XPIZ11 | D53: Residencial | E53: 1285441.34 | F53: 0.003113940841 | G53: 476
B54: Patria Logística | C54: PATL11 | D54: Logística | E54: 1265844.4 | F54: 0.003066467876
B55: VBI Consumo Essencial | C55: EVBI11 | D55: Renda Urbana | E55: 1233918 | F55: 0.002989127186 | G55: 476
B56: Panorama Desenvolvimento Logístico FII | C56: PNDL13 | D56: Logística | E56: 1009857.3 | F56: 0.002446347253 | G56: 476
B57: RB Capital General Shopping Sulacap | C57: RBGS11 | D57: Shoppings | E57: 997194 | F57: 0.00241567081
B58: REAG MULTI ATIVOS IMOBILIÁRIOS FII - RMAI11 | C58: RMAI11 | D58: Lajes Corporativas | E58: 960494.6 | F58: 0.002326767679
B59: Caixa Rio Bravo | C59: CXRI11 | D59: FOF | E59: 937856 | F59: 0.002271926389
B60: Sequoia III Renda Imobiliária | C60: SEQR11 | D60: Logística | E60: 927170.92 | F60: 0.002246042122
B61: Memorial Office | C61: FMOF11 | D61: Lajes Corporativas | E61: 786471.84 | F61: 0.001905203067
B62: TRX Edifícios Corporativos | C62: XTED11 | D62: Lajes Corporativas | E62: 780737.94 | F62: 0.001891312876
B63: Rio Bravo Crédito Imobiliário IV | C63: RBHG11 | D63: FII CRI | E63: 759818.6 | F63: 0.001840636439
B64: Housi FII | C64: HOSI11 | D64: Residencial | E64: 758784.26 | F64: 0.001838130783
B65: Panorama Properties FII | C65: PNPR11 | D65: Híbrido | E65: 700000 | F65: 0.001695727779 | G65: 476
B66: Shoping Jardim Sul | C66: JRDM11 | D66: Shoppings | E66: 663300 | F66: 0.001606823194
B67: RIO BRAVO RENDA RESIDENCIAL FII - RBRS11 | C67: RBRS11 | D67: Residencial | E67: 591616.98 | F67: 0.001433173354
B68: GREEN TOWERS FII - GTWR11 | C68: GTWR11 | D68: Lajes Corporativas | E68: 587827.24 | F68: 0.001423992829
B69: Mogno Logística FII | C69: MGLG11 | D69: Logística | E69: 500913 | F69: 0.001213445842 | G69: 476
B70: TRX Real Estate | C70: TRXF13 | D70: Renda Urbana | E70: 476824.5 | F70: 0.001155092215 | G70: 476
B71: RBR Logística | C71: RBRL11 | D71: Logística | E71: 429578.58 | F71: 0.001040640474
B72: Plural Logístico FII | C72: PLOG11 | D72: Logística | E72: 357500 | F72: 0.0008660324016
B73: Bresco Logística FII | C73: BRCO11 | D73: Logística | E73: 347354 | F73: 0.0008414540387
B74: Brio Real Estate III | C74: BRIP11 | D74: Residencial | E74: 279221.25 | F74: 0.0006764046146 | G74: 476
B75: Quasar Agro | C75: QAGR11 | D75: Agronegócio | E75: 274285.66 | F75: 0.0006644483045
B76: Mogno Fundo de Fundos | C76: MGFF11 | D76: FOF | E76: 265095.6 | F76: 0.0006421856759
B77: Galapagos Fundo de Fundos Fii | C77: GCFF11 | D77: FOF | E77: 254919.6 | F77: 0.0006175346389
B78: CENESP | C78: CNES11 | D78: Lajes Corporativas | E78: 238903.06 | F78: 0.0005787350792
B79: Vinci Instrumentos Financeiros | C79: VIFI11 | D79: FOF | E79: 233761.5 | F79: 0.0005662798133
B80: Max Retail | C80: MAXR11 | D80: Renda Urbana | E80: 215532.01 | F80: 0.0005221194524
B81: EQI Recebíveis imobiliários FII | C81: EQIR11 | D81: FII CRI | E81: 200000 | F81: 0.0004844936512 | G81: 476
B82: Santander Renda de Alugueis | C82: SARE11 | D82: Lajes Corporativas | E82: 180854.7 | F82: 0.0004381147697
B83: RB Capital Recebíveis Imobiliários FII | C83: RRCI11 | D83: FII CRI | E83: 173915.94 | F83: 0.0004213058439
B84: BB Fundo de Fundos | C84: BBFO11 | D84: FOF | E84: 151158.8 | F84: 0.0003661773946
B85: More Real Estate FOF | C85: MORE11 | D85: FOF | E85: 146446 | F85: 0.0003547607862
B86: Parque Dom Pedro Shopping Center | C86: PQDP11 | D86: Shoppings | E86: 112520 | F86: 0.0002725761282
B87: Valora Hedge Fund FII | C87: VGHF14 | D87: FOF | E87: 103416.48 | F87: 0.00025052314 | G87: 400
B88: Mogno CRI High Grade | C88: MGCR11 | D88: FII CRI | E88: 95764.13 | F88: 0.000231985565
B89: XP Hotéis (snr) | C89: XPHT11 | D89: Hotel | E89: 93453.58 | F89: 0.000226388331
B90: Alianza FOFII | C90: AFOF11 | D90: FOF | E90: 89200.4 | F90: 0.0002160851374
B91: JFL Living FII | C91: JFLL11 | D91: Residencial | E91: 87689.91 | F91: 0.0002124260234
B92: Brio Real Estate III | C92: BRIP15 | D92: Residencial | E92: 86304.75 | F92: 0.0002090705172 | G92: 476
B93: Brasil Plural Absoluto | C93: BPFF11 | D93: FOF | E93: 65089.96 | F93: 0.0001576783619
B94: RIO BRAVO IFIX FUNDO DE FUNDOS FII - RBFF11 | C94: RBFF11 | D94: FOF | E94: 62431.2 | F94: 0.0001512376002
B95: Votorantim Securities Master | C95: VOTS11 | D95: FII CRI | E95: 39713.52 | F95: 9.620474154e-05
B96: JPP ALLOCATON MOGNO | C96: JPPA11 | D96: FII CRI | E96: 30880.2 | F96: 7.480630424e-05
B97: Hedge Recebíveis Imobiliários FII | C97: HREC11 | D97: FII CRI | E97: 29378.88 | F97: 7.11694042e-05
B98: Votorantim Shopping | C98: VSHO11 | D98: Shoppings | E98: 13716.18 | F98: 3.322701065e-05
B99: Galapagos Recebíveis Imobiliários FII | C99: GCRI11 | D99: FII CRI | E99: 6779.5 | F99: 1.642312354e-05 | G99: 476
B100: Presidente Vargas | C100: PRSV11 | D100: Lajes Corporativas | E100: 5068.83 | F100: 1.227907977e-05
B101: Caixa TRX Logística Renda | C101: CXTL11 | D101: Logística | E101: 3520 | F101: 8.527088262e-06
B102: Guardian Logística | C102: GALG13 | D102: Logística | E102: 999.6 | F102: 2.421499269e-06 | G102: 476
B103: VBI Consumo Essencial | C103: EVBI13 | D103: Renda Urbana | E103: 980 | F103: 2.374018891e-06 | G103: 476
B104: Hedge Recebíveis Imobiliários FII | C104: HREC12 | D104: FII CRI | E104: 430.52 | F104: 1.042921034e-06
B105: Total | E105: =SUM(E6:E104) -> 345339392.7 | F105: =SUM(F6:F104) -> 0.8365737165

Sheet Resultado Caixa - CPFF
B2: Planilha de fundamentos - CPFF11
B3: Novembro/2021
A4: Capa
B5: DRE - Capitânia Reit FoF | C5: 2019-12-31 | D5: 2020-01-31 | E5: 2020-02-29 | F5: 2020-03-31 | G5: 2020-04-30 | H5: 2020-05-31 | I5: 2020-06-30 | J5: 2020-07-31 | K5: 2020-08-31 | L5: 2020-09-30 | M5: 2020-10-31 | N5: 2020-11-30 | O5: 2020-12-31 | P5: 2021-01-31 | Q5: 2021-02-28 | R5: 2021-03-31 | S5: 2021-04-30 | T5: 2021-05-31 | U5: 2021-06-30 | V5: 2021-07-30 | W5: 2021-08-31 | X5: 2021-09-30 | Y5: 2021-10-29 | Z5: 2021-11-30 | AA5: Acumulado
B6: Receitas | C6: 29825.48 | D6: 1958534.279 | E6: 1486793.178 | F6: 1359114.118 | G6: 1051386.104 | H6: 970860.4828 | I6: 1298879.86 | J6: 2623948.723 | K6: 2580680.875 | L6: 3150780.025 | M6: 3011809.89 | N6: 1351602.02 | O6: 1631142.3 | P6: 3232989.89 | Q6: 4461790.2 | R6: 4423668.11 | S6: 4338995.2 | T6: 4097142.572 | U6: 4687441.97 | V6: 4199718.02 | W6: 4198456.127 | X6: 4169418.332 | Y6: 3659467.829 | Z6: 3335018.084 | AA6: =SUM(C6:Z6) -> 67309463.67
B7: Renda fixa | C7: 29825.48 | D7: 391755.5 | E7: 12421.39 | F7: 6135.32 | G7: 2028.74 | H7: 2154.05 | I7: 15388.53 | J7: 34160.29 | K7: 4735.9 | L7: 2741.25 | M7: -16495.13 | N7: 4016.8 | O7: 8200.92 | P7: 3882.84 | Q7: 1194.33 | R7: 5260.74 | S7: 4417.47 | T7: 8058.45 | U7: 7905.95 | V7: 18880.84 | W7: 17197.85 | X7: 181661.97 | Y7: 18451.01 | Z7: 14473.2 | AA7: 778453.69
B8: Rendimento CRI | C8: 0 | D8: 0 | E8: 0 | F8: 0 | G8: 0 | H8: 0 | I8: 0 | J8: 0 | K8: 0 | L8: 0 | M8: 0 | N8: 0 | O8: 0 | P8: 0 | Q8: 0 | R8: 0 | S8: 0 | T8: 0 | U8: 0 | V8: 0 | W8: 0 | X8: 0 | Y8: 67243.86 | Z8: 252576.33 | AA8: 319820.19
B9: Ganho de Capital CRI | C9: 0 | D9: 0 | E9: 0 | F9: 0 | G9: 0 | H9: 0 | I9: 0 | J9: 0 | K9: 0 | L9: 0 | M9: 0 | N9: 0 | O9: 0 | P9: 0 | Q9: 0 | R9: 0 | S9: 974852.25 | T9: 275257.4418 | U9: 524519.4898 | V9: 416730.4304 | W9: 170696.7566 | X9: 10171.71159 | Y9: 610756.879 | Z9: 425634.8038 | AA9: 3408619.763
B10: Dividendos FII | C10: 0 | D10: 172499.39 | E10: 819303.73 | F10: 1038900.96 | G10: 937876.45 | H10: 895967.43 | I10: 912030.6 | J10: 943344.56 | K10: 836245.65 | L10: 1037556.65 | M10: 1419953.83 | N10: 1558221.87 | O10: 1524845.15 | P10: 1659324.13 | Q10: 1700555.63 | R10: 1707555.17 | S10: 1378117.69 | T10: 1499299.61 | U10: 1598697.84 | V10: 1707248.79 | W10: 1576460.85 | X10: 1499638.92 | Y10: 2162477.81 | Z10: 2200738.41 | AA10: 30786861.12
B11: Ganhos de Capital FII | C11: 0 | D11: 1394279.389 | E11: 655068.0581 | F11: 314077.8376 | G11: 111480.9138 | H11: 72739.00277 | I11: 371460.7295 | J11: 1646443.873 | K11: 1739699.325 | L11: 2110482.125 | M11: 1608351.19 | N11: -210636.65 | O11: 98096.23 | P11: 1569782.92 | Q11: 2760040.24 | R11: 2710852.2 | S11: 1981607.79 | T11: 2314527.07 | U11: 2556318.69 | V11: 2056857.96 | W11: 2434100.67 | X11: 2477945.73 | Y11: 800538.27 | Z11: 441595.34 | AA11: 32015708.9
B12: Despesas | C12: -64860.8 | D12: -102099.65 | E12: -391693.04 | F12: -652678.02 | G12: -249016.04 | H12: -176268.63 | I12: -185889.32 | J12: -360054.58 | K12: -580126.91 | L12: -877520.47 | M12: -485382.52 | N12: -267527.83 | O12: -271975.31 | P12: -539545.51 | Q12: -1214122.62 | R12: -1270557.96 | S12: -1103796.62 | T12: -1164693.58 | U12: -1204043.73 | V12: -1145534.5 | W12: -1218684.16 | X12: -1282361.04 | Y12: -904116.71 | Z12: -856266.21 | AA12: -16568815.76
B13: Taxa de Administração | C13: 0 | D13: -14571.42 | E13: -33210.68 | F13: -28843.52 | G13: -30443.39 | H13: -27303.86 | I13: -31921.69 | J13: -43893.1 | K13: -67419.14 | L13: -144565.7 | M13: -53828.55 | N13: -51695.27 | O13: -56978.04 | P13: -47856.9 | Q13: -45430.77 | R13: -54595.32 | S13: -49125.55 | T13: -51365.64 | U13: -51365.64 | V13: -53262.11 | W13: -52869.02 | X13: -61500.4 | Y13: -61447.24 | Z13: -61447.24 | AA13: -1175265.1
B14: Taxa de Gestão | C14: 0 | D14: 0 | E14: -77312.29 | F14: -126071.05 | G14: -138346.47 | H14: -117279.13 | I14: -109956.43 | J14: -119007.16 | K14: -207226.85 | L14: -195158.33 | M14: -202365.04 | N14: -191583.44 | O14: -217015.56 | P14: -191638.92 | Q14: -605857.36 | R14: -650758.62 | S14: -622006.02 | T14: -631891.65 | U14: -632375.68 | V14: -670764.82 | W14: -668425.73 | X14: -710941.01 | Y14: -710433.6 | Z14: -710433.6 | AA14: -8538147.03
B15: Impostos | C15: -6710.73 | D15: -88144.9 | E15: -281252.73 | F15: -130226.95 | G15: -61436.66 | H15: -22590.39 | I15: -18125.84 | J15: -81101.19 | K15: -216370.7 | L15: -501085.17 | M15: -321470.23 | N15: -10461.34 | O15: 0 | P15: -291418.55 | Q15: -552038.06 | R15: -542170.44 | S15: -396321.56 | T15: -462905.42 | U15: -511263.74 | V15: -411371.59 | W15: -486820.13 | X15: -495589.15 | Y15: -121401 | Z15: -88319.07 | AA15: -6098595.54
B16: Outras despesas | C16: -58150.07 | D16: 616.67 | E16: 82.66 | F16: -367536.5 | G16: -18789.52 | H16: -9095.25 | I16: -25885.36 | J16: -116053.13 | K16: -89110.22 | L16: -36711.27 | M16: 92281.3 | N16: -13787.78 | O16: 2018.29 | P16: -8631.14 | Q16: -10796.43 | R16: -23033.58 | S16: -36343.49 | T16: -18530.87 | U16: -9038.67 | V16: -10135.98 | W16: -10569.28 | X16: -14330.48 | Y16: -10834.87 | Z16: 3933.7 | AA16: -756808.09
B17: Resultado | C17: -35035.32 | D17: 1856434.629 | E17: 1095100.138 | F17: 706436.0976 | G17: 802370.0638 | H17: 794591.8528 | I17: 1112990.54 | J17: 2263894.143 | K17: 2000553.965 | L17: 2273259.555 | M17: 2526427.37 | N17: 1084074.19 | O17: 1359166.99 | P17: 2693444.38 | Q17: 3247667.58 | R17: 3153110.15 | S17: 3235198.58 | T17: 2932448.992 | U17: 3483398.24 | V17: 3054183.52 | W17: 2979771.967 | X17: 2887057.292 | Y17: 2755351.119 | Z17: 2478751.874 | AA17: 50740647.91
B18: Resultado / Cota | C18: -0.01459805 | D18: 0.7735144288 | E18: 0.4562917242 | F18: 0.294348374 | G18: 0.3343208599 | H18: 0.3310799387 | I18: 0.4637460581 | J18: 0.5697092617 | K18: 0.503439671 | L18: 0.5720660691 | M18: 0.6357757833 | N18: 0.2728074139 | O18: 0.3420345536 | P18: 0.677805636 | Q18: 0.8172759779 | R18: 0.7934805881 | S18: 0.8141381524 | T18: 0.7379511783 | U18: 0.8765976298 | V18: 0.7685856886 | W18: 0.7498600112 | X18: 0.7265283509 | Y18: 0.5055896073 | Z18: 0.4548353848 | AA18: 13.45718429
B19: Distribuição | C19: 0 | D19: 1560000 | E19: 1392000 | F19: 720000 | G19: 720000 | H19: 840000 | I19: 1069853.65 | J19: 0 | K19: 0 | L19: 2185574.05 | M19: 2384262.6 | N19: 2582951.15 | O19: 3814820.16 | P19: 3179016.8 | Q19: 3179016.8 | R19: 2980328.25 | S19: 3258492.22 | T19: 3179016.8 | U19: 3179016.8 | V19: 3218754.51 | W19: 2781639.7 | X19: 3150076.42 | Y19: 2833884.56 | Z19: 2506897.88 | AA19: 50715602.35
B20: Distribuição / Cota | C20: 0 | D20: 0.65 | E20: 0.58 | F20: 0.3 | G20: 0.3 | H20: 0.35 | I20: 0.4 | J20: 0 | K20: 0 | L20: 0.55 | M20: 0.6 | N20: 0.65 | O20: 0.96 | P20: 0.8 | Q20: 0.8 | R20: 0.75 | S20: 0.82 | T20: 0.8 | U20: 0.8 | V20: 0.81 | W20: 0.7 | X20: 0.72 | Y20: 0.52 | Z20: 0.46 | AA20: 13.32
B21: Amortização | C21: 0 | D21: 0 | E21: 0 | F21: 0 | G21: 0 | H21: 0 | I21: 0 | J21: 1788196.95 | K21: 1986885.5 | L21: 0 | M21: 0 | N21: 0 | O21: 0 | P21: 0 | Q21: 0 | R21: 0 | S21: 0 | T21: 0 | U21: 0 | V21: 0 | W21: 0 | X21: 0 | Y21: 0 | Z21: 0 | AA21: 3775082.45
B22: Amortização / Cota | C22: 0 | D22: 0 | E22: 0 | F22: 0 | G22: 0 | H22: 0 | I22: 0 | J22: 0.45 | K22: 0.5 | L22: 0 | M22: 0 | N22: 0 | O22: 0 | P22: 0 | Q22: 0 | R22: 0 | S22: 0 | T22: 0 | U22: 0 | V22: 0 | W22: 0 | X22: 0 | Y22: 0 | Z22: 0 | AA22: 0.95
B23: Dividend Yield a.a. (cota de mercado) | C23: 0 | D23: 0.07528957529 | E23: 0.06946107784 | F23: 0.04556962025 | G23: 0.045 | H23: 0.05454545455 | I23: 0.06012777151 | J23: 0.06699751861 | K23: 0.07575757576 | L23: 0.08496395469 | M23: 0.09278350515 | N23: 0.09845998485 | O23: 0.1413496933 | P23: 0.1164342025 | Q23: 0.114490161 | R23: 0.1100648159 | S23: 0.1194174757 | T23: 0.1167741151 | U23: 0.117517444 | V23: 0.1182337915 | W23: 0.1042183623 | X23: 0.1091598231 | Y23: 0.08271474019 | Z23: 0.08 | AA23: 0.1295652174
B24: Dividend Yield a.a. (cota 1ª emissão) | C24: 0 | D24: 0.078 | E24: 0.0696 | F24: 0.036 | G24: 0.036 | H24: 0.042 | I24: 0.048 | J24: 0.054 | K24: 0.06 | L24: 0.066 | M24: 0.072 | N24: 0.078 | O24: 0.1152 | P24: 0.096 | Q24: 0.096 | R24: 0.09 | S24: 0.0984 | T24: 0.096 | U24: 0.096 | V24: 0.0972 | W24: 0.084 | X24: 0.0864 | Y24: 0.0624 | Z24: 0.0552 | AA24: 0.0894
B25: Dividend Yield a.a. (cota 3ª emissão) | M25: 0.09113924051 | N25: 0.09873417722 | O25: 0.1458227848 | P25: 0.1215189873 | Q25: 0.1215189873 | R25: 0.1139240506 | S25: 0.124556962 | T25: 0.1215189873 | U25: 0.1215189873 | V25: 0.1230379747 | W25: 0.1063291139 | X25: 0.1093670886 | Y25: 0.07898734177 | Z25: 0.06987341772 | AA25: 0.113164557
B26: Resultado Acumulado | C26: -35035.32 | D26: 261399.309 | E26: -35500.55287 | F26: -49064.4553 | G26: 33305.60851 | H26: -12102.53872 | I26: 31034.35083 | J26: 2294928.494 | K26: 4295482.458 | L26: 4383167.964 | M26: 4525332.734 | N26: 3026455.774 | O26: 570802.6038 | P26: 85230.18376 | Q26: 153880.9638 | R26: 326662.8638 | S26: 303369.2238 | T26: 56801.43179 | U26: 361182.8716 | V26: 196611.882 | W26: 394744.1486 | X26: 131725.0202 | Y26: 53191.57919 | Z26: 25045.57296 | AA26: =Z26 -> 25045.57296
B27: Resultado Acumulado / Cota | C27: -0.01459805 | D27: 0.1089163788 | E27: -0.01479189703 | F27: -0.02044352304 | G27: 0.01387733688 | H27: -0.005042724465 | I27: 0.01293097951 | J27: 0.5775190602 | K27: 1.080958731 | L27: 1.1030248 | M27: 1.138800584 | N27: 0.7616079975 | O27: 0.1436425511 | P27: 0.02144818706 | Q27: 0.03872416497 | R27: 0.08220475306 | S27: 0.07634290546 | T27: 0.01429408786 | U27: 0.09089171761 | V27: 0.04947740622 | W27: 0.09933741743 | X27: 0.03314861883 | Y27: 0.01338566797 | Z27: 0.004595705175 | AA27: =Z27 -> 0.004595705175
B29: Por cota | C29: 2019-12-31 | D29: 2020-01-31 | E29: 2020-02-29 | F29: 2020-03-31 | G29: 2020-04-30 | H29: 2020-05-31 | I29: 2020-06-30 | J29: 2020-07-31 | K29: 2020-08-31 | L29: 2020-09-30 | M29: 2020-10-31 | N29: 2020-11-30 | O29: 2020-12-31 | P29: 2021-01-31 | Q29: 2021-02-28 | R29: 2021-03-31 | S29: 2021-04-30 | T29: 2021-05-31 | U29: =U5 -> 2021-06-30 | V29: =V5 -> 2021-07-30 | W29: 2021-08-31 | X29: 2021-09-30 | Y29: 2021-10-29 | Z29: 2021-11-30 | AA29: Acumulado | AF29: Acumulado
B30: Receitas | C30: 0.01242728333 | D30: 0.8160559496 | E30: 0.6194971575 | F30: 0.566297549 | G30: 0.4380775433 | H30: 0.4045252012 | I30: 0.5411999415 | J30: 0.6603170446 | K30: 0.649428685 | L30: 0.7928942119 | M30: 0.7579223589 | N30: 0.3401308279 | O30: 0.4104771765 | P30: 0.8135823353 | Q30: 1.122810097 | R30: 1.113216667 | S30: 1.091908718 | T30: =T6*(1/3973771) -> 1.031046472 | U30: 1.179595394 | V30: =V6*(1/3973771) -> 1.056859598 | W30: 1.056542042 | X30: 1.049234677 | Y30: 0.6714893394 | Z30: 0.611954851 | AA30: =SUM(C30:Z30) -> 17.80749112 | AF30: 4.965952581
B31: Receitas Financeiras | C31: 0.01242728333 | D31: 0.1632314583 | E31: 0.005175579167 | F31: 0.002556383333 | G31: 0.0008453083333 | H31: 0.0008975208333 | I31: 0.0064118875 | J31: 0.008596441516 | K31: 0.001191789864 | L31: 0.0006898359266 | M31: -0.004151001656 | N31: 0.001010828254 | O31: 0.002063762607 | P31: 0.0009771172018 | Q31: 0.0003005533031 | R31: 0.00132386592 | S31: 0.001111656912 | T31: 0.002027910013 | U31: 0.001989533368 | V31: =V7*(1/3973771) -> 0.004751365894 | W31: 0.004327841237 | X31: 0.04571525888 | Y31: 0.003385644333 | Z31: 0.002655741206 | AA31: 0.2695135656 | AF31: 0.01679066121
B32: Rendimento CRI | C32: 0 | D32: 0 | E32: 0 | F32: 0 | G32: 0 | H32: 0 | I32: 0 | J32: 0 | K32: 0 | L32: 0 | M32: 0 | N32: 0 | O32: 0 | P32: 0 | Q32: 0 | R32: 0 | S32: 0 | T32: 0 | U32: 0 | V32: =V8*(1/3973771) -> 0 | W32: 0 | X32: 0 | Y32: 0.01233882554 | Z32: 0.0463461686 | AA32: 0.05868499414 | AF32: 0
B33: Ganho de Capital CRI | C33: 0 | D33: 0 | E33: 0 | F33: 0 | G33: 0 | H33: 0 | I33: 0 | J33: 0 | K33: 0 | L33: 0 | M33: 0 | N33: 0 | O33: 0 | P33: 0 | Q33: 0 | R33: 0 | S33: 0.2453216982 | T33: 0.0692685718 | U33: 0.1319953993 | V33: =V9*(1/3973771) -> 0.1048702682 | W33: 0.04295586148 | X33: 0.002559712574 | Y33: 0.1120700474 | Z33: 0.07810131051 | AA33: 0.7871428694 | AF33: 0
B34: Dividendos | C34: 0 | D34: 0.07187474583 | E34: 0.3413765542 | F34: 0.4328754 | G34: 0.3907818542 | H34: 0.3733197625 | I34: 0.38001275 | J34: 0.2373927838 | K34: 0.2104413289 | L34: 0.2611012688 | M34: 0.3573315699 | N34: 0.3921267406 | O34: 0.3837274845 | P34: 0.4175691377 | Q34: 0.4279450502 | R34: 0.4297064854 | S34: 0.3468034997 | T34: 0.377298946 | U34: 0.4023125238 | V34: =V10*(1/3973771) -> 0.4296293848 | W34: 0.3967165823 | X34: 0.3773843334 | Y34: 0.3968010825 | Z34: 0.4038216621 | AA34: 8.238350931 | AF34: 2.639703064
B35: Ganhos de Capital | C35: 0 | D35: 0.5809497454 | E35: 0.2729450242 | F35: 0.1308657657 | G35: 0.04645038075 | H35: 0.03030791782 | I35: 0.154775304 | J35: 0.4143278193 | K35: 0.4377955662 | L35: 0.5311031072 | M35: 0.4047417906 | N35: -0.05300674095 | O35: 0.02468592931 | P35: 0.3950360803 | Q35: 0.694564493 | R35: 0.6821863162 | S35: 0.4986718636 | T35: 0.5824510446 | U35: 0.6432979379 | V35: =V11*(1/3973771) -> 0.5176085789 | W35: 0.6125417569 | X35: 0.6235753721 | Y35: 0.1468937395 | Z35: 0.08102996856 | AA35: 8.453798761 | AF35: 2.309458856
B36: Despesas | C36: -0.02422919583 | D36: -0.005814479167 | E36: -0.04601679583 | F36: -0.2176879458 | G36: -0.078158075 | H36: -0.0640326 | I36: -0.06990145 | J36: -0.07019865765 | K36: -0.09153929857 | L36: -0.09472999325 | M36: -0.04124854955 | N36: -0.06469081636 | O36: -0.06844262289 | P36: -0.06244118244 | Q36: -0.1666136675 | R36: -0.1832988162 | S36: -0.1780361928 | T36: -0.1766050837 | U36: -0.1743381765 | V36: -0.1847521938 | W36: -0.1841736804 | X36: -0.1979912506 | Y36: -0.1436234118 | Z36: -0.1409134721 | AA36: -2.729477608
B37: Taxa de Administração | C37: 0 | D37: -0.006071425 | E37: -0.01383778333 | F37: -0.01201813333 | G37: -0.01268474583 | H37: -0.01137660833 | I37: -0.01330070417 | J37: -0.01104570445 | K37: -0.01696603554 | L37: -0.03637997761 | M37: -0.01354596176 | N37: -0.01300912156 | O37: -0.01433853133 | P37: -0.01204319524 | Q37: -0.01143265931 | R37: -0.01373891953 | S37: -0.01236245118 | T37: -0.01292617013 | U37: -0.01300793377 | V37: -0.01340341706 | W37: -0.01330449591 | X37: -0.01547658383 | Y37: -0.01127518222 | Z37: -0.01127518222 | AA37: -0.3148209226
B38: Taxa de Gestão | C38: 0 | D38: 0 | E38: -0.03221345417 | F38: -0.05252960417 | G38: -0.0576443625 | H38: -0.04886630417 | I38: -0.04581517917 | J38: -0.02994816762 | K38: -0.05214866433 | L38: -0.04911161967 | M38: -0.0509251892 | N38: -0.04821199812 | O38: -0.0546119945 | P38: -0.04822595967 | Q38: -0.1524640851 | R38: -0.1637634932 | S38: -0.1565278976 | T38: -0.1590156177 | U38: -0.1670136377 | V38: -0.1687980561 | W38: -0.1682094237 | X38: -0.1789083996 | Y38: -0.1303600991 | Z38: -0.1303600991 | AA38: -2.145673306
B39: Impostos | C39: -0.0027961375 | D39: -0.03672704167 | E39: -0.1171886375 | F39: -0.05426122917 | G39: -0.02559860833 | H39: -0.0094126625 | I39: -0.007552433333 | J39: -0.02040912524 | K39: -0.0544497154 | L39: -0.1260981496 | M39: -0.08089802608 | N39: -0.002632597601 | O39: 0 | P39: -0.07333551682 | Q39: -0.1389204511 | R39: -0.1364372632 | S39: -0.09973437322 | T39: -0.1164902104 | U39: -0.1286595881 | V39: -0.1035217153 | W39: -0.1225083504 | X39: -0.1247150754 | Y39: -0.02227632025 | Z39: -0.01620599408 | AA39: -1.620829222
B40: Outras despesas | C40: -0.02422919583 | D40: 0.0002569458333 | E40: 3.444166667e-05 | F40: -0.1531402083 | G40: -0.007828966667 | H40: -0.0037896875 | I40: -0.01078556667 | J40: -0.02920478558 | K40: -0.0224245987 | L40: -0.009238395972 | M40: 0.0232226014 | N40: -0.003469696668 | O40: 0.0005079029466 | P40: -0.002172027528 | Q40: -0.002716923044 | R40: -0.005796403467 | S40: -0.009145844086 | T40: -0.004663295897 | U40: 0.005683394941 | V40: -0.002550720713 | W40: -0.002659760716 | X40: -0.003606267196 | Y40: -0.001988130526 | Z40: 0.0007218092187 | AA40: -0.2689833791
B41: Resultado | C41: =C30+C36 -> -0.0118019125 | D41: 0.8102414704 | E41: 0.5734803617 | F41: 0.3486096032 | G41: 0.3599194683 | H41: 0.3404926012 | I41: 0.4712984915 | J41: 0.590118387 | K41: 0.5578893864 | L41: 0.6981642187 | M41: 0.7166738093 | N41: 0.2754400115 | O41: 0.3420345536 | P41: 0.7511411528 | Q41: 0.956196429 | R41: 0.9299178513 | S41: 0.9138725256 | T41: 0.8544413888 | U41: 1.005257218 | V41: 0.8721074039 | W41: 0.8723683616 | X41: 0.7265283509 | Y41: 0.5055896073 | Z41: 0.4548353848 | AA41: 14.91481612
B44: Resultado / Cota | C44: -0.01459805 | D44: 0.7735144288 | E44: 0.4562917242 | F44: 0.294348374 | G44: 0.3343208599 | H44: 0.3310799387 | I44: 0.4637460581 | J44: 0.5697092617 | K44: 0.503439671 | L44: 0.5720660691 | M44: 0.6357757833 | N44: 0.2728074139 | O44: 0.3420345536 | P44: 0.677805636 | Q44: 0.8172759779 | R44: 0.7934805881 | S44: 0.8141381524 | T44: 0.8544413888 | U44: 1.005257218 | V44: 0.8721074039 | W44: 0.8723683616 | X44: 0.7265283509 | Y44: 0.5055896073 | Z44: 0.4548353848 | AA44: =AA41 -> 14.91481612
B45: Distribuição / Cota | C45: =C20 -> 0 | D45: 0.65 | E45: 0.58 | F45: 0.3 | G45: 0.3 | H45: 0.35 | I45: 0.4 | J45: 0 | K45: 0 | L45: 0.55 | M45: 0.6 | N45: 0.65 | O45: 0.96 | P45: 0.8 | Q45: 0.8 | R45: 0.75 | S45: 0.82 | T45: 0.8 | U45: 0.8 | V45: 0.81 | W45: 0.7 | X45: 0.72 | Y45: 0.52 | Z45: 0.46 | AA45: =SUM(C45:Z45) -> 13.32

Sheet Rentabilidade
B2: Planilha de fundamentos - CPFF11
B3: Novembro/2021
A4: Capa
B5: Data | C5: CPFF11 | D5: Patrimonial ajustada | E5: Reit FoF (Patrimonial) | F5: CDI | G5: IFIX | H5: CPFF11 (Cotas não ajustadas) | J5: Data | K5: CPFF11 | L5: Patrimonial Ajustada | M5: Patrimonial | N5: CDI | O5: IFIX | Q5: Informações Gerais | R5: 2021-06-30 | S5: 2021-07-30 | T5: 2021-08-31 | U5: 2021-09-30 | V5: 2021-10-29 | W5: 2021-11-30 | X5: LTM | Y5: Acumulado
B6: Código | C6: CPFF11 | D6: Patrimonial ajustada | E6: Reit FoF (Patrimonial) | F6: CDI | G6: IFIX | H6: CPFF não ajust. | J6: Código | K6: CPFF11 | L6: Patrimonial Ajustada | M6: Patrimonial | N6: CDI | O6: IFIX | Q6: Patrimônio Líquido | R6: 324147233.8 | S6: 327675655.9 | T6: 314171789.6 | U6: 430930416.3 | V6: 424825637.8 | W6: 415334052.1 | X6: 355694317.5 | Y6: -
B7: 2019-12-23 | C7: 100 | D7: 100 | E7: 100 | F7: 2264.501348 | G7: 3085.82 | H7: 100 | J7: 2019-12-23 | K7: 0 | L7: 0 | M7: 0 | N7: 0 | O7: 0 | Q7: Valor de Mercado | R7: 324617353 | S7: 326246599.1 | T7: 320285942.6 | U7: 431349928.7 | V7: 411131252.3 | W7: 376034682 | X7: 346118659.2 | Y7: -
B8: 2019-12-24 | C8: 100 | D8: 100.9130004 | E8: 97.24276808 | F8: 2264.888318 | G8: 3085.82 | H8: 100 | J8: 2019-12-24 | K8: 0 | L8: 0.009130003896 | M8: -0.0275723192 | N8: 0.0001708855892 | O8: 0 | Q8: Fundo no Período (Patrimonial) % | R8: -0.006597265272 | S8: 0.02142341163 | T8: -0.03138775482 | U8: -0.001710922748 | V8: -0.004299340024 | W8: -0.01508260346 | X8: -0.04196851194 | Y8: -0.06495130919
B9: 2019-12-26 | C9: 100 | D9: 101.3272318 | E9: 97.6419338 | F9: 2265.275355 | G9: 3134.8 | H9: 100 | J9: 2019-12-26 | K9: 0 | L9: 0.01327231815 | M9: -0.023580662 | N9: 0.0003418003803 | O9: 0.01587260436 | Q9: Fundo no Período (Patrimonial Ajustada) % | R9: -0.00408009119 | S9: 0.02238881348 | T9: -0.03052850023 | U9: -0.000533223621 | V9: -0.004029475898 | W9: -0.01553691463 | X9: -0.03475924689 | Y9: -0.001971717064
B10: 2019-12-27 | C10: 100 | D10: 101.8496409 | E10: 98.14534275 | F10: 2265.662458 | G10: 3169.3 | H10: 100 | J10: 2019-12-27 | K10: 0 | L10: 0.01849640922 | M10: -0.0185465725 | N10: 0.0005127443782 | O10: 0.0270527769 | Q10: Fundo no Período (Mercado) % | R10: -0.01147983661 | S10: 0.02363052121 | T10: -0.008525309276 | U10: -0.02227870177 | V10: -0.03812772013 | W10: -0.079222856 | X10: -0.07435612397 | Y10: -0.1482341508
B11: 2019-12-30 | C11: 100 | D11: 101.8917858 | E11: 98.18595478 | F11: 2266.049627 | G11: 3197.58 | H11: 100 | J11: 2019-12-30 | K11: 0 | L11: 0.01891785771 | M11: -0.0181404522 | N11: 0.0006837175881 | O11: 0.03621727774 | Q11: IFIX no Período % | R11: -0.02186077558 | S11: 0.02512985999 | T11: -0.0263019985 | U11: -0.01242617752 | V11: -0.01472564781 | W11: -0.03635711296 | X11: -0.1016497396 | Y11: -0.1644360332
B12: 2019-12-31 | C12: 100 | D12: 101.8338126 | E12: 98.13009014 | F12: 2266.436862 | G12: 3197.58 | H12: 100 | J12: 2019-12-31 | K12: 0 | L12: 0.01833812633 | M12: -0.0186990986 | N12: 0.0008547200148 | O12: 0.03621727774 | Q12: CDI no Período % | R12: 0.003020218136 | S12: 0.003556163746 | T12: 0.004203297605 | U12: 0.004582356658 | V12: 0.004803930939 | W12: 0.005867546839 | X12: 0.03611813699 | Y12: 0.06580738019
B13: 2020-01-02 | C13: 100 | D13: 102.4393753 | E13: 98.71362834 | F13: 2266.824164 | G13: 3225.15 | H13: 108.85 | J13: 2020-01-02 | K13: 0 | L13: 0.02439375306 | M13: -0.0128637166 | N13: 0.001025751663 | O13: 0.04515169388
B14: 2020-01-03 | C14: 108.85 | D14: 102.9496183 | E14: 99.2053137 | F14: 2267.211531 | G14: 3253.76 | H14: 109.99 | J14: 2020-01-03 | K14: 0.0885 | L14: 0.02949618339 | M14: -0.007946863 | N14: 0.001196812539 | O14: 0.0544231355 | Q14: Rentabilidade
B15: 2020-01-06 | C15: 109.99 | D15: 103.2045011 | E15: 99.45092631 | F15: 2267.598965 | G15: 3249.5 | H15: 109.5 | J15: 2020-01-06 | K15: 0.0999 | L15: 0.03204501102 | M15: -0.0054907369 | N15: 0.001367902646 | O15: 0.05304262724
B16: 2020-01-07 | C16: 109.5 | D16: 103.8048576 | E16: 100.0294477 | F16: 2267.986465 | G16: 3239.81 | H16: 109.95 | J16: 2020-01-07 | K16: 0.095 | L16: 0.03804857585 | M16: 0.0002944767 | N16: 0.00153902199 | O16: 0.04990245705
B17: 2020-01-08 | C17: 109.95 | D17: 103.3586408 | E17: 99.59945992 | F17: 2268.374031 | G17: 3183.95 | H17: 108.98 | J17: 2020-01-08 | K17: 0.0995 | L17: 0.03358640814 | M17: -0.0040054008 | N17: 0.001710170576 | O17: 0.03180029943
B18: 2020-01-09 | C18: 108.98 | D18: 102.7901712 | E18: 99.05166574 | F18: 2268.761664 | G18: 3167.49 | H18: 108 | J18: 2020-01-09 | K18: 0.0898 | L18: 0.02790171246 | M18: -0.0094833426 | N18: 0.001881348409 | O18: 0.02646622292
B19: 2020-01-10 | C19: 108 | D19: 103.1688765 | E19: 99.41659739 | F19: 2269.149362 | G19: 3174.95 | H19: 108.27 | J19: 2020-01-10 | K19: 0.08 | L19: 0.03168876506 | M19: -0.0058340261 | N19: 0.002052555493 | O19: 0.02888373269
B20: 2020-01-13 | C20: 108.27 | D20: 102.8861544 | E20: 99.14415799 | F20: 2269.537127 | G20: 3179.4 | H20: 108.25 | J20: 2020-01-13 | K20: 0.0827 | L20: 0.0288615443 | M20: -0.0085584201 | N20: 0.002223791834 | O20: 0.03032581291
B21: 2020-01-14 | C21: 108.25 | D21: 102.043273 | E21: 98.33193235 | F21: 2269.924958 | G21: 3182.53 | H21: 105.85 | J21: 2020-01-14 | K21: 0.0825 | L21: 0.0204327297 | M21: -0.0166806765 | N21: 0.002395057438 | O21: 0.03134013001
B22: 2020-01-15 | C22: 105.85 | D22: 102.4876712 | E22: 98.76016769 | F22: 2270.312856 | G22: 3175.2 | H22: 106.79 | J22: 2020-01-15 | K22: 0.0585 | L22: 0.0248767119 | M22: -0.0123983231 | N22: 0.002566352308 | O22: 0.02896474843
B23: 2020-01-16 | C23: 106.79 | D23: 101.687567 | E23: 97.98916352 | F23: 2270.70082 | G23: 3162.3 | H23: 105.04 | J23: 2020-01-16 | K23: 0.0679 | L23: 0.01687567021 | M23: -0.0201083648 | N23: 0.002737676449 | O23: 0.02478433609
B24: 2020-01-17 | C24: 105.04 | D24: 102.0582918 | E24: 98.34640495 | F24: 2271.08885 | G24: 3151.07 | H24: 106.83 | J24: 2020-01-17 | K24: 0.0504 | L24: 0.02058291809 | M24: -0.0165359505 | N24: 0.002909029868 | O24: 0.02114510892
B25: 2020-01-20 | C25: 106.83 | D25: 102.0615786 | E25: 98.34957223 | F25: 2271.476946 | G25: 3139.22 | H25: 106.9 | J25: 2020-01-20 | K25: 0.0683 | L25: 0.02061578632 | M25: -0.0165042777 | N25: 0.003080412569 | O25: 0.0173049627
B26: 2020-01-21 | C26: 106.9 | D26: 101.5231227 | E26: 97.8307001 | F26: 2271.865109 | G26: 3126.08 | H26: 106.05 | J26: 2020-01-21 | K26: 0.069 | L26: 0.01523122719 | M26: -0.021692999 | N26: 0.003251824556 | O26: 0.01304677525
B27: 2020-01-22 | C27: 106.05 | D27: 101.5483454 | E27: 97.85500545 | F27: 2272.253338 | G27: 3120.4 | H27: 106.88 | J27: 2020-01-22 | K27: 0.0605 | L27: 0.01548345425 | M27: -0.0214499455 | N27: 0.003423265835 | O27: 0.01120609757
B28: 2020-01-23 | C28: 106.88 | D28: 102.9872204 | E28: 99.24154813 | F28: 2272.641633 | G28: 3121.21 | H28: 108 | J28: 2020-01-23 | K28: 0.0688 | L28: 0.02987220365 | M28: -0.0075845187 | N28: 0.003594736411 | O28: 0.01146858858
B29: 2020-01-24 | C29: 108 | D29: 102.9118038 | E29: 99.16887449 | F29: 2273.029995 | G29: 3119.91 | H29: 107.9 | J29: 2020-01-24 | K29: 0.08 | L29: 0.02911803804 | M29: -0.0083112551 | N29: 0.003766236289 | O29: 0.01104730671
B30: 2020-01-27 | C30: 107.9 | D30: 102.1614297 | E30: 98.44579173 | F30: 2273.418423 | G30: 3092.23 | H30: 106.01 | J30: 2020-01-27 | K30: 0.079 | L30: 0.02161429743 | M30: -0.0155420827 | N30: 0.003937765474 | O30: 0.00207724365
B31: 2020-01-28 | C31: 106.01 | D31: 102.514194 | E31: 98.78572589 | F31: 2273.806917 | G31: 3100.09 | H31: 106.21 | J31: 2020-01-28 | K31: 0.0601 | L31: 0.02514194033 | M31: -0.0121427411 | N31: 0.00410932397 | O31: 0.004624378609
B32: 2020-01-29 | C32: 106.21 | D32: 101.7120338 | E32: 98.01274041 | F32: 2274.195478 | G32: 3087.9 | H32: 105.6 | J32: 2020-01-29 | K32: 0.0621 | L32: 0.01712033774 | M32: -0.0198725959 | N32: 0.004280911784 | O32: 0.0006740509816
B33: 2020-01-30 | C33: 105.6 | D33: 101.4748345 | E33: 97.78416816 | F33: 2274.584105 | G33: 3076.05 | H33: 105.22 | J33: 2020-01-30 | K33: 0.056 | L33: 0.01474834525 | M33: -0.0221583184 | N33: 0.004452528919 | O33: -0.003166095236
B34: 2020-01-31 | C34: 105.22 | D34: 101.9626819 | E34: 98.25427243 | F34: 2274.972799 | G34: 3077.28 | H34: 103.6 | J34: 2020-01-31 | K34: 0.0522 | L34: 0.01962681933 | M34: -0.0174572757 | N34: 0.004624175381 | O34: -0.00276749778
B35: 2020-02-03 | C35: 103.6 | D35: 102.2282053 | E35: 98.51013863 | F35: 2275.361559 | G35: 3056 | H35: 104.1 | J35: 2020-02-03 | K35: 0.036 | L35: 0.02228205287 | M35: -0.0148986137 | N35: 0.004795851175 | O35: -0.009663557823
B36: 2020-02-04 | C36: 104.1 | D36: 102.6374301 | E36: 98.90447985 | F36: 2275.750386 | G36: 3058.55 | H36: 104 | J36: 2020-02-04 | K36: 0.041 | L36: 0.02637430122 | M36: -0.0109552015 | N36: 0.004967556306 | O36: -0.008837197244
B37: 2020-02-05 | C37: 104 | D37: 102.671224 | E37: 98.93704468 | F37: 2276.139279 | G37: 3048.45 | H37: 103.5 | J37: 2020-02-05 | K37: 0.04 | L37: 0.02671224045 | M37: -0.0106295532 | N37: 0.005139290779 | O37: -0.01211023326
B38: 2020-02-06 | C38: 103.5 | D38: 102.490277 | E38: 98.76267869 | F38: 2276.528238 | G38: 3042.87 | H38: 100.92 | J38: 2020-02-06 | K38: 0.035 | L38: 0.02490276963 | M38: -0.0123732131 | N38: 0.005311054599 | O38: -0.01391850464
B39: 2020-02-07 | C39: 100.92 | D39: 102.4875633 | E39: 98.7600637 | F39: 2276.917264 | G39: 3028.28 | H39: 103 | J39: 2020-02-07 | K39: 0.0092 | L39: 0.02487563275 | M39: -0.012399363 | N39: 0.005482847771 | O39: -0.0186465834
B40: 2020-02-10 | C40: 103 | D40: 101.7872333 | E40: 98.08520493 | F40: 2277.28469 | G40: 3004.57 | H40: 102.77 | J40: 2020-02-10 | K40: 0.03 | L40: 0.01787233321 | M40: -0.0191479507 | N40: 0.005645102628 | O40: -0.02633011647
B41: 2020-02-11 | C41: 102.77 | D41: 101.8481346 | E41: 98.14389126 | F41: 2277.652176 | G41: 3020.31 | H41: 104.86 | J41: 2020-02-11 | K41: 0.0277 | L41: 0.01848134648 | M41: -0.0185610874 | N41: 0.005807383668 | O41: -0.02122936529
B42: 2020-02-12 | C42: 104.86 | D42: 102.1026269 | E42: 98.39954423 | F42: 2278.019721 | G42: 3034.2 | H42: 104 | J42: 2020-02-12 | K42: 0.0486 | L42: 0.02102626901 | M42: -0.0160045577 | N42: 0.005969690895 | O42: -0.01672813061
B43: 2020-02-13 | C43: 104 | D43: 102.21724 | E43: 98.51000052 | F43: 2278.387325 | G43: 3039.6 | H43: 105.9 | J43: 2020-02-13 | K43: 0.04 | L43: 0.02217240007 | M43: -0.0148999948 | N43: 0.006132024313 | O43: -0.01497819056
B44: 2020-02-14 | C44: 105.9 | D44: 102.619397 | E44: 98.897572 | F44: 2278.754989 | G44: 3048.93 | H44: 105.11 | J44: 2020-02-14 | K44: 0.059 | L44: 0.02619397014 | M44: -0.01102428 | N44: 0.006294383928 | O44: -0.01195468303
B45: 2020-02-17 | C45: 105.11 | D45: 102.278715 | E45: 98.56924596 | F45: 2279.122711 | G45: 3046.95 | H45: 104.7 | J45: 2020-02-17 | K45: 0.0511 | L45: 0.02278715038 | M45: -0.0143075404 | N45: 0.006456769742 | O45: -0.01259632772
B46: 2020-02-18 | C46: 105.3950115 | D46: 102.0250856 | E46: 98.32481522 | F46: 2279.490494 | G46: 3025.36 | H46: 102.7 | J46: 2020-02-18 | K46: 0.05395011479 | L46: 0.02025085603 | M46: -0.01675184782 | N46: 0.006619181761 | O46: -0.01959284728
B47: 2020-02-19 | C47: 103.3817352 | D47: 101.7817677 | E47: 98.09032203 | F47: 2279.858335 | G47: 3012.92 | H47: 102.3 | J47: 2020-02-19 | K47: 0.03381735233 | L47: 0.01781767701 | M47: -0.01909677972 | N47: 0.006781619988 | O47: -0.02362419065
B48: 2020-02-20 | C48: 102.97908 | D48: 101.722625 | E48: 98.03332433 | F48: 2280.226236 | G48: 3013.12 | H48: 103.68 | J48: 2020-02-20 | K48: 0.02979079984 | L48: 0.01722624997 | M48: -0.01966675674 | N48: 0.006944084427 | O48: -0.02355937806
B49: 2020-02-21 | C49: 104.3682406 | D49: 101.5373914 | E49: 97.8548088 | F49: 2280.594197 | G49: 3017.57 | H49: 102.95 | J49: 2020-02-21 | K49: 0.04368240594 | L49: 0.01537391375 | M49: -0.02145191198 | N49: 0.007106575084 | O49: -0.02211729783
B50: 2020-02-26 | C50: 103.6333948 | D50: 100.513141 | E50: 96.8677062 | F50: 2280.962216 | G50: 2972.68 | H50: 99.01 | J50: 2020-02-26 | K50: 0.03633394764 | L50: 0.005131410176 | M50: -0.03132293797 | N50: 0.007269091962 | O50: -0.03666448464
B51: 2020-02-27 | C51: 99.66724056 | D51: 100.769821 | E51: 97.11507688 | F51: 2281.330295 | G51: 2972.46 | H51: 100.96 | J51: 2020-02-27 | K51: -0.003327594405 | L51: 0.007698210286 | M51: -0.02884923118 | N51: 0.007431635065 | O51: -0.0367357785
B52: 2020-02-28 | C52: 101.6301849 | D52: 100.9333668 | E52: 97.15589681 | F52: 2281.698434 | G52: 2963.81 | H52: 100.2 | J52: 2020-02-28 | K52: 0.01630184899 | L52: 0.009333668246 | M52: -0.02844103187 | N52: 0.007594204397 | O52: -0.0395389232
B53: 2020-03-02 | C53: 100.8651399 | D53: 101.1513131 | E53: 97.36568634 | F53: 2282.066632 | G53: 2985.33 | H53: 100.04 | J53: 2020-03-02 | K53: 0.008651399259 | L53: 0.01151313072 | M53: -0.02634313662 | N53: 0.007756799964 | O53: -0.03256508805
B54: 2020-03-03 | C54: 100.7040778 | D54: 101.236611 | E54: 97.44779194 | F54: 2282.434889 | G54: 2999.09 | H54: 99.93 | J54: 2020-03-03 | K54: 0.007040778262 | L54: 0.01236610982 | M54: -0.02552208059 | N54: 0.007919421769 | O54: -0.02810598155
B55: 2020-03-04 | C55: 100.5933476 | D55: 101.3993292 | E55: 97.60442039 | F55: 2282.803206 | G55: 3002.8 | H55: 100.4 | J55: 2020-03-04 | K55: 0.005933476327 | L55: 0.01399329227 | M55: -0.02395579606 | N55: 0.008082069815 | O55: -0.02690370793
B56: 2020-03-05 | C56: 101.0664676 | D56: 101.2801122 | E56: 97.48966507 | F56: 2283.171582 | G56: 2993.95 | H56: 100.01 | J56: 2020-03-05 | K56: 0.0106646755 | L56: 0.01280112156 | M56: -0.02510334933 | N56: 0.008244744109 | O56: -0.02977166523
B57: 2020-03-06 | C57: 100.6738787 | D57: 100.9668729 | E57: 97.18814887 | F57: 2283.540017 | G57: 2966.33 | H57: 100.5 | J57: 2020-03-06 | K57: 0.006738786825 | L57: 0.009668728622 | M57: -0.02811851126 | N57: 0.008407444653 | O57: -0.03872228451
B58: 2020-03-09 | C58: 101.1671314 | D58: 99.22607058 | E58: 95.51249679 | F58: 2283.908512 | G58: 2861.03 | H58: 97.35 | J58: 2020-03-09 | K58: 0.01167131363 | L58: -0.00773929416 | M58: -0.04487503211 | N58: 0.008570171452 | O58: -0.07284611546
B59: 2020-03-10 | C59: 97.99622128 | D59: 99.69884284 | E59: 95.96757537 | F59: 2284.277067 | G59: 2901.68 | H59: 99.5 | J59: 2020-03-10 | K59: -0.02003778725 | L59: -0.003011571557 | M59: -0.04032424634 | N59: 0.00873292451 | O59: -0.05967295565
B60: 2020-03-11 | C60: 100.1604932 | D60: 98.80877337 | E60: 95.11081708 | F60: 2284.645681 | G60: 2848.51 | H60: 98.1 | J60: 2020-03-11 | K60: 0.001604932398 | L60: -0.01191226631 | M60: -0.04889182917 | N60: 0.008895703832 | O60: -0.07690338387
B61: 2020-03-12 | C61: 98.75119987 | D61: 94.5428971 | E61: 91.00459287 | F61: 2285.014354 | G61: 2661.41 | H61: 87.5 | J61: 2020-03-12 | K61: -0.01248800132 | L61: -0.05457102903 | M61: -0.08995407132 | N61: 0.009058509422 | O61: -0.1375355659
B62: 2020-03-13 | C62: 88.08083576 | D62: 94.93676415 | E62: 91.3837193 | F62: 2285.383087 | G62: 2701.07 | H62: 87.9 | J62: 2020-03-13 | K62: -0.1191916424 | L62: -0.05063235846 | M62: -0.086162807 | N62: 0.009221341283 | O62: -0.1246832284
B63: 2020-03-16 | C63: 88.48349101 | D63: 91.86661016 | E63: 88.41299172 | F63: 2285.75188 | G63: 2575.81 | H63: 83.5 | J63: 2020-03-16 | K63: -0.1151650899 | L63: -0.08133389844 | M63: -0.1158700828 | N63: 0.009384199421 | O63: -0.1652753563
B64: 2020-03-17 | C64: 84.05428327 | D64: 90.3354252 | E64: 86.93936988 | F64: 2286.120732 | G64: 2520.9 | H64: 82.6 | J64: 2020-03-17 | K64: -0.1594571673 | L64: -0.09664574799 | M64: -0.1306063012 | N64: 0.009547083839 | O64: -0.1830696541
B65: 2020-03-18 | C65: 83.7104751 | D65: 82.5150772 | E65: 79.41301877 | F65: 2286.489643 | G65: 2187.38 | H65: 71 | J65: 2020-03-18 | K65: -0.162895249 | L65: -0.174849228 | M65: -0.2058698123 | N65: 0.009709994542 | O65: -0.2911511365
B66: 2020-03-19 | C66: 71.9545246 | D66: 82.4080165 | E66: 79.3099829 | F66: 2286.858614 | G66: 2207.27 | H66: 64 | J66: 2020-03-19 | K66: -0.280454754 | L66: -0.175919835 | M66: -0.206900171 | N66: 0.009872931534 | O66: -0.284705524
B67: 2020-03-20 | C67: 64.86041655 | D67: 83.37276104 | E67: 80.23845898 | F67: 2287.227645 | G67: 2276.6 | H67: 67 | J67: 2020-03-20 | K67: -0.3513958345 | L67: -0.1662723896 | M67: -0.1976154102 | N67: 0.01003589482 | O67: -0.2622382381
B68: 2020-03-23 | C68: 67.90074857 | D68: 80.46415169 | E68: 77.43919542 | F68: 2287.55305 | G68: 2169.26 | H68: 65.9 | J68: 2020-03-23 | K68: -0.3209925143 | L68: -0.1953584831 | M68: -0.2256080458 | N68: 0.01017959328 | O68: -0.2970231575
B69: 2020-03-24 | C69: 66.78596016 | D69: 82.29730013 | E69: 79.19605732 | F69: 2287.878502 | G69: 2230.21 | H69: 68.5 | J69: 2020-03-24 | K69: -0.3321403984 | L69: -0.1770269987 | M69: -0.2080394268 | N69: 0.01032331218 | O69: -0.2772715194
B70: 2020-03-25 | C70: 69.42091458 | D70: 84.72720167 | E70: 81.53439189 | F70: 2288.204 | G70: 2360.05 | H70: 71.45 | J70: 2020-03-25 | K70: -0.3057908542 | L70: -0.1527279833 | M70: -0.1846560811 | N70: 0.01046705153 | O70: -0.2351951831
B71: 2020-03-26 | C71: 72.41057441 | D71: 86.55050519 | E71: 83.28862273 | F71: 2288.529544 | G71: 2443.24 | H71: 78.99 | J71: 2020-03-26 | K71: -0.2758942559 | L71: -0.1344949481 | M71: -0.1671137727 | N71: 0.01061081134 | O71: -0.2082363845
B72: 2020-03-27 | C72: 80.05194223 | D72: 86.53574316 | E72: 83.27441704 | F72: 2288.855135 | G72: 2468.85 | H72: 74.1 | J72: 2020-03-27 | K72: -0.1994805777 | L72: -0.1346425684 | M72: -0.1672558296 | N72: 0.01075459159 | O72: -0.1999371318
B73: 2020-03-30 | C73: 75.09620103 | D73: 85.48393409 | E73: 82.26224815 | F73: 2289.180772 | G73: 2477.3 | H73: 73.35 | J73: 2020-03-30 | K73: -0.2490379897 | L73: -0.1451606591 | M73: -0.1773775185 | N73: 0.0108983923 | O73: -0.1971987997
B74: 2020-03-31 | C74: 74.33611802 | D74: 86.04042386 | E74: 82.7433573 | F74: 2289.506455 | G74: 2494.1 | H74: 79 | J74: 2020-03-31 | K74: -0.2566388198 | L74: -0.1395957614 | M74: -0.172566427 | N74: 0.01104221347 | O74: -0.1917545417
B75: 2020-04-01 | C75: 80.06207667 | D75: 85.51171752 | E75: 82.23491097 | F75: 2289.832185 | G75: 2464.29 | H75: 78.33 | J75: 2020-04-01 | K75: -0.1993792333 | L75: -0.1448828248 | M75: -0.1776508903 | N75: 0.0111860551 | O75: -0.2014148589
B76: 2020-04-02 | C76: 79.38306919 | D76: 85.51000711 | E76: 82.2332661 | F76: 2290.15796 | G76: 2445.74 | H76: 79.5 | J76: 2020-04-02 | K76: -0.2061693081 | L76: -0.1448999289 | M76: -0.177667339 | N76: 0.01132991719 | O76: -0.2074262271
B77: 2020-04-03 | C77: 80.56879868 | D77: 84.94758219 | E77: 81.6923933 | F77: 2290.483783 | G77: 2417.74 | H77: 77 | J77: 2020-04-03 | K77: -0.1943120132 | L77: -0.1505241781 | M77: -0.183076067 | N77: 0.01147379975 | O77: -0.2164999903
B78: 2020-04-06 | C78: 78.03518866 | D78: 84.21699326 | E78: 80.98980052 | F78: 2290.809651 | G78: 2438.11 | H78: 78.9 | J78: 2020-04-06 | K78: -0.2196481134 | L78: -0.1578300674 | M78: -0.1901019948 | N78: 0.01161770278 | O78: -0.2098988275
B79: 2020-04-07 | C79: 79.96073227 | D79: 86.41237922 | E79: 83.10105935 | F79: 2291.135566 | G79: 2483.42 | H79: 82 | J79: 2020-04-07 | K79: -0.2003926773 | L79: -0.1358762078 | M79: -0.1689894065 | N79: 0.01176162629 | O79: -0.1952155343
B80: 2020-04-08 | C80: 83.1024087 | D80: 86.63325286 | E80: 83.31346912 | F80: 2291.461528 | G80: 2503.81 | H80: 80.2 | J80: 2020-04-08 | K80: -0.168975913 | L80: -0.1336674714 | M80: -0.1668653088 | N80: 0.01190557027 | O80: -0.1886078903
B81: 2020-04-09 | C81: 81.27820948 | D81: 87.12773881 | E81: 83.78900637 | F81: 2291.787535 | G81: 2520.21 | H81: 84 | J81: 2020-04-09 | K81: -0.1872179052 | L81: -0.1287226119 | M81: -0.1621099363 | N81: 0.01204953473 | O81: -0.1832932575
B82: 2020-04-13 | C82: 85.12929672 | D82: 87.12567962 | E82: 83.78702609 | F82: 2292.113589 | G82: 2527.66 | H82: 83.39 | J82: 2020-04-13 | K82: -0.1487070328 | L82: -0.1287432038 | M82: -0.1621297391 | N82: 0.01219351967 | O82: -0.1808789884
B83: 2020-04-14 | C83: 84.51109587 | D83: 87.33566709 | E83: 83.98896685 | F83: 2292.43969 | G83: 2549.17 | H83: 84.98 | J83: 2020-04-14 | K83: -0.1548890413 | L83: -0.1266433291 | M83: -0.1601103315 | N83: 0.0123375251 | O83: -0.1739083939
B84: 2020-04-15 | C84: 86.12247184 | D84: 87.2336785 | E84: 83.89088646 | F84: 2292.765837 | G84: 2544.44 | H84: 83.51 | J84: 2020-04-15 | K84: -0.1387752816 | L84: -0.127663215 | M84: -0.1610911354 | N84: 0.01248155101 | O84: -0.1754412117
B85: 2020-04-16 | C85: 84.63270915 | D85: 86.97451251 | E85: 83.64165171 | F85: 2293.09203 | G85: 2550.18 | H85: 83 | J85: 2020-04-16 | K85: -0.1536729085 | L85: -0.1302548749 | M85: -0.1635834829 | N85: 0.01262559742 | O85: -0.1735810903
B86: 2020-04-17 | C86: 84.42272507 | D86: 87.37619412 | E86: 84.00675044 | F86: 2293.41827 | G86: 2559.48 | H86: 84.59 | J86: 2020-04-17 | K86: -0.1557727493 | L86: -0.1262380588 | M86: -0.1599324956 | N86: 0.01276966432 | O86: -0.1705673046
B87: 2020-04-20 | C87: 86.03997968 | D87: 87.37435565 | E87: 84.00498287 | F87: 2293.744556 | G87: 2555.55 | H87: 81 | J87: 2020-04-20 | K87: -0.1396002032 | L87: -0.1262564435 | M87: -0.1599501713 | N87: 0.01291375171 | O87: -0.1718408721
B88: 2020-04-22 | C88: 82.38844254 | D88: 87.54929433 | E88: 84.17317547 | F88: 2294.070888 | G88: 2573.06 | H88: 82.49 | J88: 2020-04-22 | K88: -0.1761155746 | L88: -0.1245070567 | M88: -0.1582682453 | N88: 0.01305785961 | O88: -0.1661665295
B89: 2020-04-23 | C89: 83.90398303 | D89: 88.06848605 | E89: 84.66476748 | F89: 2294.397267 | G89: 2592.54 | H89: 83.71 | J89: 2020-04-23 | K89: -0.1609601697 | L89: -0.1193151395 | M89: -0.1533523252 | N89: 0.013201988 | O89: -0.1598537828
B90: 2020-04-24 | C90: 85.14489537 | D90: 86.64254118 | E90: 83.2939333 | F90: 2294.723693 | G90: 2528.53 | H90: 80.11 | J90: 2020-04-24 | K90: -0.1485510463 | L90: -0.1335745882 | M90: -0.167060667 | N90: 0.01334613691 | O90: -0.1805970536
B91: 2020-04-27 | C91: 81.48318681 | D91: 87.01898235 | E91: 83.65582556 | F91: 2295.050165 | G91: 2556.91 | H91: 80.11 | J91: 2020-04-27 | K91: -0.1851681319 | L91: -0.1298101765 | M91: -0.1634417444 | N91: 0.01349030632 | O91: -0.1714001465
B92: 2020-04-28 | C92: 81.48318681 | D92: 86.8247235 | E92: 83.46907454 | F92: 2295.376683 | G92: 2572.87 | H92: 80.14 | J92: 2020-04-28 | K92: -0.1851681319 | L92: -0.131752765 | M92: -0.1653092546 | N92: 0.01363449624 | O92: -0.1662281014
B93: 2020-04-29 | C93: 81.51370105 | D93: 87.33685405 | E93: 83.93556801 | F93: 2295.703248 | G93: 2593.26 | H93: 81.01 | J93: 2020-04-29 | K93: -0.1848629895 | L93: -0.1266314595 | M93: -0.1606443199 | N93: 0.01377870667 | O93: -0.1596204574
B94: 2020-04-30 | C94: 82.39861395 | D94: 87.33674846 | E94: 83.93545374 | F94: 2296.029859 | G94: 2603.62 | H94: 80 | J94: 2020-04-30 | K94: -0.1760138605 | L94: -0.1266325154 | M94: -0.1606454626 | N94: 0.01392293763 | O94: -0.1562631651
B95: 2020-05-04 | C95: 81.37130127 | D95: 87.69546458 | E95: 84.28019981 | F95: 2296.356516 | G95: 2582.49 | H95: 78.18 | J95: 2020-05-04 | K95: -0.1862869873 | L95: -0.1230453542 | M95: -0.1571980019 | N95: 0.0140671891 | O95: -0.1631106157
B96: 2020-05-05 | C96: 79.52010417 | D96: 87.41356663 | E96: 84.00928026 | F96: 2296.68322 | G96: 2587.55 | H96: 79.25 | J96: 2020-05-05 | K96: -0.2047989583 | L96: -0.1258643337 | M96: -0.1599071974 | N96: 0.01421146109 | O96: -0.161470857
B97: 2020-05-06 | C97: 80.60844532 | D97: 87.62159946 | E97: 84.20921133 | F97: 2297.009971 | G97: 2586.36 | H97: 78.41 | J97: 2020-05-06 | K97: -0.1939155468 | L97: -0.1237840054 | M97: -0.1579078867 | N97: 0.01435575361 | O97: -0.161856492
B98: 2020-05-07 | C98: 79.75404666 | D98: 87.20186649 | E98: 83.80582469 | F98: 2297.336768 | G98: 2579.97 | H98: 78 | J98: 2020-05-07 | K98: -0.2024595334 | L98: -0.1279813351 | M98: -0.1619417531 | N98: 0.01450006666 | O98: -0.1639272543
B99: 2020-05-08 | C99: 79.33701874 | D99: 87.29995957 | E99: 83.90009758 | F99: 2297.663612 | G99: 2582.78 | H99: 77.16 | J99: 2020-05-08 | K99: -0.2066298126 | L99: -0.1270004043 | M99: -0.1609990242 | N99: 0.01464440024 | O99: -0.1630166374
B100: 2020-05-11 | C100: 78.48262008 | D100: 87.1636858 | E100: 83.76913094 | F100: 2297.924279 | G100: 2588.09 | H100: 77.02 | J100: 2020-05-11 | K100: -0.2151737992 | L100: -0.128363142 | M100: -0.1623086906 | N100: 0.01475951036 | O100: -0.161295863
B101: 2020-05-12 | C101: 78.3402203 | D101: 87.23629931 | E101: 83.83891654 | F101: 2298.184975 | G101: 2581.18 | H101: 77 | J101: 2020-05-12 | K101: -0.216597797 | L101: -0.1276370069 | M101: -0.1616108346 | N101: 0.01487463353 | O101: -0.1635351381
B102: 2020-05-13 | C102: 78.31987748 | D102: 86.74984681 | E102: 83.37140874 | F102: 2298.445702 | G102: 2558.59 | H102: 77 | J102: 2020-05-13 | K102: -0.2168012252 | L102: -0.1325015319 | M102: -0.1662859126 | N102: 0.01498976976 | O102: -0.1708557207
B103: 2020-05-14 | C103: 78.31987748 | D103: 86.5122314 | E103: 83.14304716 | F103: 2298.706457 | G103: 2548.03 | H103: 74.52 | J103: 2020-05-14 | K103: -0.2168012252 | L103: -0.134877686 | M103: -0.1685695284 | N103: 0.01510491905 | O103: -0.1742778257
B104: 2020-05-15 | C104: 75.79736714 | D104: 86.19134825 | E104: 82.83466068 | F104: 2298.967243 | G104: 2563.3 | H104: 74.61 | J104: 2020-05-15 | K104: -0.2420263286 | L104: -0.1380865175 | M104: -0.1716533932 | N104: 0.01522008141 | O104: -0.1693293841
B105: 2020-05-18 | C105: 75.88890985 | D105: 86.74663766 | E105: 83.36832457 | F105: 2299.228057 | G105: 2563.83 | H105: 75.05 | J105: 2020-05-18 | K105: -0.2411109015 | L105: -0.1325336234 | M105: -0.1663167543 | N105: 0.01533525683 | O105: -0.1691576307
B106: 2020-05-19 | C106: 76.61688295 | D106: 86.56269129 | E106: 83.19154192 | F106: 2299.488902 | G106: 2567.31 | H106: 75.4 | J106: 2020-05-19 | K106: -0.2338311705 | L106: -0.1343730871 | M106: -0.1680845808 | N106: 0.01545044532 | O106: -0.1680298916
B107: 2020-05-20 | C107: 76.9741902 | D107: 86.54982124 | E107: 83.17917308 | F107: 2299.749776 | G107: 2569.9 | H107: 75.41 | J107: 2020-05-20 | K107: -0.230258098 | L107: -0.1345017876 | M107: -0.1682082692 | N107: 0.01556564688 | O107: -0.1671905685
B108: 2020-05-21 | C108: 76.98439898 | D108: 86.54647486 | E108: 83.17595703 | F108: 2300.01068 | G108: 2575.66 | H108: 76.63 | J108: 2020-05-21 | K108: -0.2301560102 | L108: -0.1345352514 | M108: -0.1682404297 | N108: 0.01568086151 | O108: -0.1653239658
B109: 2020-05-22 | C109: 78.22986996 | D109: 86.96255305 | E109: 83.57583122 | F109: 2300.271613 | G109: 2588.1 | H109: 75.95 | J109: 2020-05-22 | K109: -0.2177013004 | L109: -0.1303744695 | M109: -0.1642416878 | N109: 0.01579608921 | O109: -0.1612926224
B110: 2020-05-25 | C110: 77.53567302 | D110: 86.95935522 | E110: 83.57275793 | F110: 2300.532576 | G110: 2604.32 | H110: 76.3 | J110: 2020-05-25 | K110: -0.2246432698 | L110: -0.1304064478 | M110: -0.1642724207 | N110: 0.01591132998 | O110: -0.156036321
B111: 2020-05-26 | C111: 77.89298027 | D111: 87.97621004 | E111: 84.55001175 | F111: 2300.793568 | G111: 2615.54 | H111: 78 | J111: 2020-05-26 | K111: -0.2210701973 | L111: -0.1202378996 | M111: -0.1544998825 | N111: 0.01602658382 | O111: -0.1524003344
B112: 2020-05-27 | C112: 79.62847262 | D112: 88.16842234 | E112: 84.73473842 | F112: 2301.05459 | G112: 2627.96 | H112: 78 | J112: 2020-05-27 | K112: -0.2037152738 | L112: -0.1183157766 | M112: -0.1526526158 | N112: 0.01614185074 | O112: -0.1483754723
B113: 2020-05-28 | C113: 79.62847262 | D113: 89.03421628 | E113: 85.56681436 | F113: 2301.315642 | G113: 2640.32 | H113: 77.5 | J113: 2020-05-28 | K113: -0.2037152738 | L113: -0.1096578372 | M113: -0.1443318564 | N113: 0.01625713074 | O113: -0.144370054
B114: 2020-05-29 | C114: 79.11803369 | D114: 89.30098763 | E114: 85.8138162 | F114: 2301.576723 | G114: 2657.68 | H114: 77 | J114: 2020-05-29 | K114: -0.2088196631 | L114: -0.1069901237 | M114: -0.141861838 | N114: 0.01637242381 | O114: -0.1387443208
B115: 2020-06-01 | C115: 78.60759477 | D115: 89.77821363 | E115: 86.2724067 | F115: 2301.837834 | G115: 2676.23 | H115: 76.58 | J115: 2020-06-01 | K115: -0.2139240523 | L115: -0.1022178637 | M115: -0.137275933 | N115: 0.01648772996 | O115: -0.1327329527
B116: 2020-06-02 | C116: 78.17882607 | D116: 90.94721195 | E116: 87.39060595 | F116: 2302.098975 | G116: 2704.72 | H116: 79.71 | J116: 2020-06-02 | K116: -0.2182117393 | L116: -0.09052788052 | M116: -0.1260939405 | N116: 0.0166030492 | O116: -0.1235003986
B117: 2020-06-03 | C117: 81.37417375 | D117: 91.95817882 | E117: 88.36203767 | F117: 2302.360145 | G117: 2730.43 | H117: 79.5 | J117: 2020-06-03 | K117: -0.1862582625 | L117: -0.08041821184 | M117: -0.1163796233 | N117: 0.01671838152 | O117: -0.1151687396
B118: 2020-06-04 | C118: 81.1597894 | D118: 92.33649514 | E118: 88.72555946 | F118: 2302.621345 | G118: 2744.8 | H118: 80.99 | J118: 2020-06-04 | K118: -0.188402106 | L118: -0.07663504863 | M118: -0.1127444054 | N118: 0.01683372692 | O118: -0.1105119547
B119: 2020-06-05 | C119: 82.68089741 | D119: 93.22783201 | E119: 89.58203947 | F119: 2302.882574 | G119: 2772.83 | H119: 80 | J119: 2020-06-05 | K119: -0.1731910259 | L119: -0.06772167992 | M119: -0.1041796053 | N119: 0.01694908541 | O119: -0.1014284696
B120: 2020-06-08 | C120: 81.67022833 | D120: 93.96666617 | E120: 90.29198058 | F120: 2303.143834 | G120: 2793.52 | H120: 80 | J120: 2020-06-08 | K120: -0.1832977167 | L120: -0.06033333833 | M120: -0.09708019418 | N120: 0.01706445699 | O120: -0.09472360669
B121: 2020-06-09 | C121: 81.67022833 | D121: 93.0890512 | E121: 89.44868586 | F121: 2303.405122 | G121: 2792.45 | H121: 79.8 | J121: 2020-06-09 | K121: -0.1832977167 | L121: -0.06910948801 | M121: -0.1055131414 | N121: 0.01717984165 | O121: -0.09507035407
B122: 2020-06-10 | C122: 81.46605276 | D122: 92.9783647 | E122: 89.3423279 | F122: 2303.666441 | G122: 2799.38 | H122: 79.45 | J122: 2020-06-10 | K122: -0.1853394724 | L122: -0.07021635301 | M122: -0.106576721 | N122: 0.01729523941 | O122: -0.09282459768
B123: 2020-06-12 | C123: 81.10874551 | D123: 92.9346126 | E123: 89.30028678 | F123: 2303.927789 | G123: 2782.02 | H123: 79.3 | J123: 2020-06-12 | K123: -0.1889125449 | L123: -0.070653874 | M123: -0.1069971322 | N123: 0.01741065025 | O123: -0.09845033087
B124: 2020-06-15 | C124: 80.95561383 | D124: 92.72588313 | E124: 89.08402575 | F124: 2304.189166 | G124: 2777.82 | H124: 80 | J124: 2020-06-15 | K124: -0.1904438617 | L124: -0.0727411687 | M124: -0.1091597425 | N124: 0.01752607419 | O124: -0.09981139535
B125: 2020-06-16 | C125: 81.67022833 | D125: 93.11550999 | E125: 89.45834981 | F125: 2304.450574 | G125: 2783.49 | H125: 80.67 | J125: 2020-06-16 | K125: -0.1832977167 | L125: -0.06884490015 | M125: -0.1054165019 | N125: 0.01764151123 | O125: -0.0979739583
B126: 2020-06-17 | C126: 82.35421649 | D126: 93.49559851 | E126: 89.82351016 | F126: 2304.712011 | G126: 2789.07 | H126: 80 | J126: 2020-06-17 | K126: -0.1764578351 | L126: -0.06504401488 | M126: -0.1017648984 | N126: 0.01775696136 | O126: -0.09616568692
B127: 2020-06-18 | C127: 81.99640027 | D127: 93.26181503 | E127: 89.59890864 | F127: 2304.973477 | G127: 2794.67 | H127: 79.6 | J127: 2020-06-18 | K127: -0.1800359973 | L127: -0.06738184972 | M127: -0.1040109136 | N127: 0.01787242459 | O127: -0.09435093427
B128: 2020-06-19 | C128: 81.58641826 | D128: 93.49478264 | E128: 89.82272633 | F128: 2305.234974 | G128: 2804.01 | H128: 79.38 | J128: 2020-06-19 | K128: -0.1841358174 | L128: -0.06505217356 | M128: -0.1017727367 | N128: 0.01798790091 | O128: -0.09132418612
B129: 2020-06-22 | C129: 81.36092816 | D129: 93.45823454 | E129: 89.78761367 | F129: 2305.429574 | G129: 2792.42 | H129: 78.39 | J129: 2020-06-22 | K129: -0.1863907184 | L129: -0.06541765464 | M129: -0.1021238633 | N129: 0.01807383619 | O129: -0.09508007596
B130: 2020-06-23 | C130: 80.34622271 | D130: 93.26190501 | E130: 89.59899509 | F130: 2305.624191 | G130: 2793.51 | H130: 78.51 | J130: 2020-06-23 | K130: -0.1965377729 | L130: -0.06738094994 | M130: -0.1040100491 | N130: 0.01815977873 | O130: -0.09472684732
B131: 2020-06-24 | C131: 80.46921731 | D131: 93.44900222 | E131: 89.77874396 | F131: 2305.818825 | G131: 2786.72 | H131: 79.02 | J131: 2020-06-24 | K131: -0.1953078269 | L131: -0.06550997783 | M131: -0.1022125604 | N131: 0.01824572852 | O131: -0.0969272349
B132: 2020-06-25 | C132: 80.99194436 | D132: 93.09905856 | E132: 89.44254452 | F132: 2306.013474 | G132: 2793.05 | H132: 79.2 | J132: 2020-06-25 | K132: -0.1900805564 | L132: -0.06900941439 | M132: -0.1055745548 | N132: 0.01833168556 | O132: -0.09487591629
B133: 2020-06-26 | C133: 81.17643626 | D133: 93.14086526 | E133: 89.45700538 | F133: 2306.208141 | G133: 2790.38 | H133: 79.6 | J133: 2020-06-26 | K133: -0.1882356374 | L133: -0.06859134739 | M133: -0.1054299462 | N133: 0.01841764986 | O133: -0.09574116442
B134: 2020-06-29 | C134: 81.58641826 | D134: 93.10246839 | E134: 89.42012716 | F134: 2306.402823 | G134: 2787.24 | H134: 79.4 | J134: 2020-06-29 | K134: -0.1841358174 | L134: -0.06897531612 | M134: -0.1057987284 | N134: 0.01850362142 | O134: -0.09675872215
B135: 2020-06-30 | C135: 81.38142726 | D135: 93.81369832 | E135: 90.09694167 | F135: 2306.597522 | G135: 2806.28 | H135: 79.83 | J135: 2020-06-30 | K135: -0.1861857274 | L135: -0.06186301677 | M135: -0.09903058332 | N135: 0.01858960023 | O135: -0.09058856317
B136: 2020-07-01 | C136: 81.82215792 | D136: 94.47844525 | E136: 90.73535233 | F136: 2306.792238 | G136: 2816.04 | H136: 82.1 | J136: 2020-07-01 | K136: -0.1817784208 | L136: -0.05521554753 | M136: -0.09264647674 | N136: 0.0186755863 | O136: -0.08742570856
B137: 2020-07-02 | C137: 84.14880577 | D137: 94.92360978 | E137: 91.16288011 | F137: 2306.98697 | G137: 2813.15 | H137: 81.45 | J137: 2020-07-02 | K137: -0.1585119423 | L137: -0.05076390222 | M137: -0.08837119888 | N137: 0.01876157964 | O137: -0.08836225055
B138: 2020-07-03 | C138: 83.48258502 | D138: 95.2696859 | E138: 91.49524522 | F138: 2307.181719 | G138: 2813.16 | H138: 82 | J138: 2020-07-03 | K138: -0.1651741498 | L138: -0.047303141 | M138: -0.08504754778 | N138: 0.01884758023 | O138: -0.08835900992
B139: 2020-07-06 | C139: 84.04631027 | D139: 95.46010339 | E139: 91.67811866 | F139: 2307.376483 | G139: 2802.41 | H139: 84 | J139: 2020-07-06 | K139: -0.1595368973 | L139: -0.04539896612 | M139: -0.08321881342 | N139: 0.01893358808 | O139: -0.09184268687
B140: 2020-07-07 | C140: 86.09622028 | D140: 95.78243893 | E140: 91.98768376 | F140: 2307.571265 | G140: 2798.33 | H140: 83.85 | J140: 2020-07-07 | K140: -0.1390377972 | L140: -0.04217561066 | M140: -0.08012316243 | N140: 0.01901960319 | O140: -0.0931648638
B141: 2020-07-08 | C141: 85.94247703 | D141: 95.59743223 | E141: 91.80787142 | F141: 2307.766063 | G141: 2779.58 | H141: 85 | J141: 2020-07-08 | K141: -0.1405752297 | L141: -0.0440256777 | M141: -0.08192128584 | N141: 0.01910562556 | O141: -0.09924104452
B142: 2020-07-09 | C142: 87.55691633 | D142: 95.37386885 | E142: 91.59317028 | F142: 2307.960877 | G142: 2766.1 | H142: 85.01 | J142: 2020-07-09 | K142: -0.1244308367 | L142: -0.04626131146 | M142: -0.08406829724 | N142: 0.01919165519 | O142: -0.1036094134
B143: 2020-07-10 | C143: 92.88180269 | D143: 95.30727204 | E143: 91.51407182 | F143: 2308.155707 | G143: 2766.91 | H143: 85.68 | J143: 2020-07-10 | K143: -0.07118197307 | L143: -0.04692727964 | M143: -0.08485928178 | N143: 0.01927769209 | O143: -0.1033469224
B144: 2020-07-13 | C144: 93.61384372 | D144: 95.17651031 | E144: 91.38851437 | F144: 2308.350555 | G144: 2751.18 | H144: 84.88 | J144: 2020-07-13 | K144: -0.06386156279 | L144: -0.04823489688 | M144: -0.08611485626 | N144: 0.01936373625 | O144: -0.1084444329
B145: 2020-07-14 | C145: 92.73976488 | D145: 95.08251034 | E145: 91.29825557 | F145: 2308.545418 | G145: 2742.7 | H145: 83.99 | J145: 2020-07-14 | K145: -0.07260235118 | L145: -0.0491748966 | M145: -0.08701744427 | N145: 0.01944978767 | O145: -0.1111924869
B146: 2020-07-15 | C146: 91.76735217 | D146: 95.002582 | E146: 91.22150836 | F146: 2308.740298 | G146: 2746.23 | H146: 83.98 | J146: 2020-07-15 | K146: -0.08232647827 | L146: -0.04997417997 | M146: -0.08778491641 | N146: 0.01953584636 | O146: -0.1100485446
B147: 2020-07-16 | C147: 91.75642619 | D147: 95.30001619 | E147: 91.50710476 | F147: 2308.935195 | G147: 2743.44 | H147: 81.8 | J147: 2020-07-16 | K147: -0.08243573813 | L147: -0.04699983808 | M147: -0.08492895241 | N147: 0.01962191231 | O147: -0.1109526803
B148: 2020-07-17 | C148: 89.37456135 | D148: 95.37255261 | E148: 91.57675424 | F148: 2309.130107 | G148: 2741.64 | H148: 80.3 | J148: 2020-07-17 | K148: -0.1062543865 | L148: -0.04627447394 | M148: -0.08423245755 | N148: 0.01970798553 | O148: -0.1115359937
B149: 2020-07-20 | C149: 87.73566353 | D149: 94.89264538 | E149: 91.11594718 | F149: 2309.325037 | G149: 2724.51 | H149: 78 | J149: 2020-07-20 | K149: -0.1226433647 | L149: -0.05107354621 | M149: -0.08884052821 | N149: 0.01979406601 | O149: -0.1170871924
B150: 2020-07-21 | C150: 85.22268686 | D150: 95.6766546 | E150: 91.86875308 | F150: 2309.519983 | G150: 2732.19 | H150: 80 | J150: 2020-07-21 | K150: -0.1477731314 | L150: -0.04323345397 | M150: -0.08131246924 | N150: 0.01988015376 | O150: -0.1145983888
B151: 2020-07-22 | C151: 87.40788396 | D151: 95.49026173 | E151: 91.68977858 | F151: 2309.714945 | G151: 2735.69 | H151: 79.9 | J151: 2020-07-22 | K151: -0.1259211604 | L151: -0.0450973827 | M151: -0.08310221417 | N151: 0.01996624878 | O151: -0.1134641684
B152: 2020-07-23 | C152: 87.29862411 | D152: 95.38468618 | E152: 91.57465728 | F152: 2309.909924 | G152: 2732.84 | H152: 79.2 | J152: 2020-07-23 | K152: -0.1270137589 | L152: -0.04615313823 | M152: -0.08425342725 | N152: 0.02005235106 | O152: -0.1143877478
B153: 2020-07-24 | C153: 86.53380512 | D153: 95.0626911 | E153: 91.26552391 | F153: 2310.104919 | G153: 2730.92 | H153: 80.27 | J153: 2020-07-24 | K153: -0.1346619488 | L153: -0.04937308903 | M153: -0.0873447609 | N153: 0.02013846062 | O153: -0.1150099487
B154: 2020-07-27 | C154: 87.70288557 | D154: 95.03225728 | E154: 91.23630574 | F154: 2310.299931 | G154: 2722.77 | H154: 79.6 | J154: 2020-07-27 | K154: -0.1229711443 | L154: -0.04967742718 | M154: -0.08763694262 | N154: 0.02022457744 | O154: -0.117651062
B155: 2020-07-28 | C155: 86.97084454 | D155: 94.83221909 | E155: 91.04425783 | F155: 2310.494959 | G155: 2722.71 | H155: 80 | J155: 2020-07-28 | K155: -0.1302915546 | L155: -0.05167780912 | M155: -0.08955742167 | N155: 0.02031070153 | O155: -0.1176705057
B156: 2020-07-29 | C156: 87.40788396 | D156: 94.63456789 | E156: 90.85450158 | F156: 2310.690003 | G156: 2723.24 | H156: 80.11 | J156: 2020-07-29 | K156: -0.1259211604 | L156: -0.05365432112 | M156: -0.09145498422 | N156: 0.02039683289 | O156: -0.1174987524
B157: 2020-07-30 | C157: 87.5280698 | D157: 94.60373565 | E157: 90.8249009 | F157: 2310.885064 | G157: 2733.65 | H157: 80.6 | J157: 2020-07-30 | K157: -0.124719302 | L157: -0.05396264349 | M157: -0.09175099102 | N157: 0.02048297153 | O157: -0.1141252568
B158: 2020-07-31 | C158: 88.06344309 | D158: 94.76598189 | E158: 90.9604807 | F158: 2311.080142 | G158: 2733.12 | H158: 80.99 | J158: 2020-07-31 | K158: -0.1193655691 | L158: -0.05234018108 | M158: -0.09039519302 | N158: 0.02056911743 | O158: -0.1142970102
B159: 2020-08-03 | C159: 88.48955652 | D159: 94.45288111 | E159: 90.65995305 | F159: 2311.275236 | G159: 2714.27 | H159: 80 | J159: 2020-08-03 | K159: -0.1151044348 | L159: -0.05547118886 | M159: -0.09340046946 | N159: 0.02065527061 | O159: -0.1204055972
B160: 2020-08-04 | C160: 87.40788396 | D160: 94.38233564 | E160: 90.59224046 | F160: 2311.470346 | G160: 2714.29 | H160: 80 | J160: 2020-08-04 | K160: -0.1259211604 | L160: -0.05617664362 | M160: -0.09407759539 | N160: 0.02074143106 | O160: -0.120399116
B161: 2020-08-05 | C161: 87.40788396 | D161: 94.66483997 | E161: 90.86340031 | F161: 2311.665473 | G161: 2720.52 | H161: 80 | J161: 2020-08-05 | K161: -0.1259211604 | L161: -0.05335160033 | M161: -0.09136599688 | N161: 0.02082759878 | O161: -0.1183802036
B162: 2020-08-06 | C162: 87.40788396 | D162: 94.76829248 | E162: 90.9626985 | F162: 2311.860617 | G162: 2712.45 | H162: 80.27 | J162: 2020-08-06 | K162: -0.1259211604 | L162: -0.05231707522 | M162: -0.09037301502 | N162: 0.02091377378 | O162: -0.1209953918
B163: 2020-08-07 | C163: 87.70288557 | D163: 94.8433796 | E163: 91.03477036 | F163: 2312.055776 | G163: 2732.44 | H163: 80.01 | J163: 2020-08-07 | K163: -0.1229711443 | L163: -0.05156620396 | M163: -0.08965229637 | N163: 0.02099995605 | O163: -0.114517373
B164: 2020-08-10 | C164: 87.41880995 | D164: 95.22352756 | E164: 91.39965278 | F164: 2312.228469 | G164: 2745.67 | H164: 80.7 | J164: 2020-08-10 | K164: -0.1258119005 | L164: -0.04776472441 | M164: -0.08600347217 | N164: 0.02107621688 | O164: -0.1102300199
B165: 2020-08-11 | C165: 88.17270294 | D165: 95.32416675 | E165: 91.49625062 | F165: 2312.401175 | G165: 2745.38 | H165: 81.2 | J165: 2020-08-11 | K165: -0.1182729706 | L165: -0.04675833251 | M165: -0.08503749378 | N165: 0.0211524834 | O165: -0.1103239982
B166: 2020-08-12 | C166: 88.71900222 | D166: 95.46808264 | E166: 91.63438731 | F166: 2312.573893 | G166: 2740.77 | H166: 81.35 | J166: 2020-08-12 | K166: -0.1128099778 | L166: -0.04531917356 | M166: -0.08365612689 | N166: 0.02122875562 | O166: -0.1118179285
B167: 2020-08-13 | C167: 88.882892 | D167: 95.99082142 | E167: 92.13613456 | F167: 2312.746625 | G167: 2747.56 | H167: 80.78 | J167: 2020-08-13 | K167: -0.11117108 | L167: -0.04009178579 | M167: -0.07863865442 | N167: 0.02130503353 | O167: -0.1096175409
B168: 2020-08-14 | C168: 88.26011083 | D168: 96.43760257 | E168: 92.5649744 | F168: 2312.919369 | G168: 2755.67 | H168: 81 | J168: 2020-08-14 | K168: -0.1173988917 | L168: -0.03562397426 | M168: -0.07435025603 | N168: 0.02138131714 | O168: -0.1069893902
B169: 2020-08-17 | C169: 88.50048251 | D169: 96.09735027 | E169: 92.23838555 | F169: 2313.092126 | G169: 2748.6 | H169: 80.19 | J169: 2020-08-17 | K169: -0.1149951749 | L169: -0.0390264973 | M169: -0.07761614454 | N169: 0.02145760645 | O169: -0.1092805154
B170: 2020-08-18 | C170: 87.61547768 | D170: 96.29530368 | E170: 92.42838978 | F170: 2313.264897 | G170: 2755.25 | H170: 80.84 | J170: 2020-08-18 | K170: -0.1238452232 | L170: -0.03704696317 | M170: -0.07571610223 | N170: 0.02153390146 | O170: -0.1071254966
B171: 2020-08-19 | C171: 88.7980245 | D171: 96.20557271 | E171: 92.34226212 | F171: 2313.43768 | G171: 2758.46 | H171: 80 | J171: 2020-08-19 | K171: -0.112019755 | L171: -0.03794427286 | M171: -0.0765773788 | N171: 0.02161020217 | O171: -0.1060852545
B172: 2020-08-20 | C172: 87.8753335 | D172: 96.17997583 | E172: 92.31769312 | F172: 2313.610476 | G172: 2760.78 | H172: 79.5 | J172: 2020-08-20 | K172: -0.121246665 | L172: -0.03820024174 | M172: -0.07682306879 | N172: 0.02168650857 | O172: -0.1053334284
B173: 2020-08-21 | C173: 87.32611266 | D173: 96.31201321 | E173: 92.4444283 | F173: 2313.783284 | G173: 2770.66 | H173: 79.46 | J173: 2020-08-21 | K173: -0.1267388734 | L173: -0.03687986793 | M173: -0.075555717 | N173: 0.02176282068 | O173: -0.1021316862
B174: 2020-08-24 | C174: 87.28217499 | D174: 96.43173424 | E174: 92.55934172 | F174: 2313.956106 | G174: 2780.18 | H174: 79.2 | J174: 2020-08-24 | K174: -0.1271782501 | L174: -0.03568265756 | M174: -0.0744065828 | N174: 0.02183913848 | O174: -0.09904660674
B175: 2020-08-25 | C175: 86.99658016 | D175: 96.50481371 | E175: 92.62948655 | F175: 2314.128941 | G175: 2777.4 | H175: 79.15 | J175: 2020-08-25 | K175: -0.1300341984 | L175: -0.0349518629 | M175: -0.07370513453 | N175: 0.02191546199 | O175: -0.0999475018
B176: 2020-08-26 | C176: 86.94165808 | D176: 96.89710483 | E176: 93.0060245 | F176: 2314.301788 | G176: 2776.67 | H176: 79.54 | J176: 2020-08-26 | K176: -0.1305834192 | L176: -0.03102895173 | M176: -0.06993975503 | N176: 0.0219917912 | O176: -0.1001840678
B177: 2020-08-27 | C177: 87.37005033 | D177: 97.04811898 | E177: 93.1509744 | F177: 2314.474649 | G177: 2777.87 | H177: 79.01 | J177: 2020-08-27 | K177: -0.1262994967 | L177: -0.02951881023 | M177: -0.06849025602 | N177: 0.0220681261 | O177: -0.0997951922
B178: 2020-08-28 | C178: 86.78787624 | D178: 97.05325559 | E178: 93.09638943 | F178: 2314.647522 | G178: 2781.84 | H178: 79.06 | J178: 2020-08-28 | K178: -0.1321212376 | L178: -0.02946744405 | M178: -0.06903610574 | N178: 0.02214446671 | O178: -0.0985086622
B179: 2020-08-31 | C179: 86.84279833 | D179: 97.08911498 | E179: 93.13078682 | F179: 2314.820409 | G179: 2782.1 | H179: 79.2 | J179: 2020-08-31 | K179: -0.1315720167 | L179: -0.02910885023 | M179: -0.0686921318 | N179: 0.02222081302 | O179: -0.09842440583
B180: 2020-09-01 | C180: 86.99658016 | D180: 97.3349452 | E180: 93.36659453 | F180: 2314.993308 | G180: 2774.66 | H180: 79.31 | J180: 2020-09-01 | K180: -0.1300341984 | L180: -0.026650548 | M180: -0.06633405468 | N180: 0.02229716504 | O180: -0.1008354343
B181: 2020-09-02 | C181: 87.11740874 | D181: 97.59539166 | E181: 93.61642258 | F181: 2315.16622 | G181: 2782.69 | H181: 79.1 | J181: 2020-09-02 | K181: -0.1288259126 | L181: -0.02404608338 | M181: -0.06383577422 | N181: 0.02237352275 | O181: -0.09823320868
B182: 2020-09-03 | C182: 86.88673599 | D182: 97.93172425 | E182: 93.93904287 | F182: 2315.339145 | G182: 2779.62 | H182: 78.83 | J182: 2020-09-03 | K182: -0.1311326401 | L182: -0.02068275749 | M182: -0.06060957129 | N182: 0.02244988617 | O182: -0.099228082
B183: 2020-09-04 | C183: 86.59015674 | D183: 98.24777619 | E183: 94.24220936 | F183: 2315.512083 | G183: 2789.02 | H183: 79 | J183: 2020-09-04 | K183: -0.1340984326 | L183: -0.01752223811 | M183: -0.05757790644 | N183: 0.0225262553 | O183: -0.09618189006
B184: 2020-09-08 | C184: 86.77689183 | D184: 97.97698883 | E184: 93.98246201 | F184: 2315.685034 | G184: 2786.82 | H184: 79.25 | J184: 2020-09-08 | K184: -0.1322310817 | L184: -0.02023011173 | M184: -0.06017537992 | N184: 0.02260263012 | O184: -0.0968948286
B185: 2020-09-09 | C185: 87.05150224 | D185: 98.23386845 | E185: 94.22886864 | F185: 2315.857998 | G185: 2788.53 | H185: 79.5 | J185: 2020-09-09 | K185: -0.1294849776 | L185: -0.01766131547 | M185: -0.05771131361 | N185: 0.02267901066 | O185: -0.09634068092
B186: 2020-09-10 | C186: 87.32611266 | D186: 98.03942425 | E186: 94.04235194 | F186: 2316.030975 | G186: 2793.01 | H186: 79.02 | J186: 2020-09-10 | K186: -0.1267388734 | L186: -0.01960575749 | M186: -0.05957648064 | N186: 0.02275539689 | O186: -0.09488887881
B187: 2020-09-11 | C187: 86.79886066 | D187: 98.09061427 | E187: 94.09145494 | F187: 2316.203964 | G187: 2791.8 | H187: 79.05 | J187: 2020-09-11 | K187: -0.1320113934 | L187: -0.01909385729 | M187: -0.05908545063 | N187: 0.02283178884 | O187: -0.095280995
B188: 2020-09-14 | C188: 86.83181391 | D188: 98.11220835 | E188: 94.11216863 | F188: 2316.376967 | G188: 2792.76 | H188: 78.2 | J188: 2020-09-14 | K188: -0.1316818609 | L188: -0.01887791649 | M188: -0.05887831375 | N188: 0.02290818649 | O188: -0.09496989455
B189: 2020-09-15 | C189: 85.89813849 | D189: 98.25570276 | E189: 94.24981276 | F189: 2316.549982 | G189: 2802.19 | H189: 78 | J189: 2020-09-15 | K189: -0.1410186151 | L189: -0.01744297242 | M189: -0.05750187242 | N189: 0.02298458984 | O189: -0.09191398072
B190: 2020-09-16 | C190: 85.67845016 | D190: 97.98218027 | E190: 93.98744179 | F190: 2316.723011 | G190: 2802.76 | H190: 77.99 | J190: 2020-09-16 | K190: -0.1432154984 | L190: -0.02017819733 | M190: -0.06012558207 | N190: 0.0230609989 | O190: -0.09172926483
B191: 2020-09-17 | C191: 86.17101083 | D191: 97.98856266 | E191: 93.99356398 | F191: 2316.896052 | G191: 2800.04 | H191: 78.02 | J191: 2020-09-17 | K191: -0.1382898917 | L191: -0.02011437336 | M191: -0.06006436021 | N191: 0.02313741367 | O191: -0.09261071611
B192: 2020-09-18 | C192: 86.20415777 | D192: 95.26156777 | E192: 91.37774881 | F192: 2317.069106 | G192: 2797.82 | H192: 77.78 | J192: 2020-09-18 | K192: -0.1379584223 | L192: -0.04738432228 | M192: -0.08622251189 | N192: 0.02321383415 | O192: -0.09333013591
B193: 2020-09-21 | C193: 85.93898221 | D193: 95.40665621 | E193: 91.37774881 | F193: 2317.242174 | G193: 2787.27 | H193: 77.6 | J193: 2020-09-21 | K193: -0.1406101779 | L193: -0.04593343785 | M193: -0.08622251189 | N193: 0.02329026033 | O193: -0.09674900027
B194: 2020-09-22 | C194: 85.74010053 | D194: 95.40665621 | E194: 91.37774881 | F194: 2317.415254 | G194: 2788.81 | H194: 77.78 | J194: 2020-09-22 | K194: -0.1425989947 | L194: -0.04593343785 | M194: -0.08622251189 | N194: 0.02336669223 | O194: -0.09624994329
B195: 2020-09-23 | C195: 85.93898221 | D195: 95.40665621 | E195: 91.37774881 | F195: 2317.588347 | G195: 2790.19 | H195: 77.8 | J195: 2020-09-23 | K195: -0.1406101779 | L195: -0.04593343785 | M195: -0.08622251189 | N195: 0.02344312983 | O195: -0.09580273639
B196: 2020-09-24 | C196: 85.96108017 | D196: 95.40665621 | E196: 91.37774881 | F196: 2317.761453 | G196: 2789.57 | H196: 77.99 | J196: 2020-09-24 | K196: -0.1403891983 | L196: -0.04593343785 | M196: -0.08622251189 | N196: 0.02351957314 | O196: -0.09600365543
B197: 2020-09-25 | C197: 86.17101083 | D197: 95.40665621 | E197: 91.37774881 | F197: 2317.934572 | G197: 2788.11 | H197: 77.4 | J197: 2020-09-25 | K197: -0.1382898917 | L197: -0.04593343785 | M197: -0.08622251189 | N197: 0.02359602216 | O197: -0.09647678737
B198: 2020-09-28 | C198: 85.51912089 | D198: 95.40665621 | E198: 91.37774881 | F198: 2318.107704 | G198: 2782.18 | H198: 77.54 | J198: 2020-09-28 | K198: -0.1448087911 | L198: -0.04593343785 | M198: -0.08622251189 | N198: 0.02367247689 | O198: -0.09839848079
B199: 2020-09-29 | C199: 85.67380664 | D199: 95.40665621 | E199: 91.37774881 | F199: 2318.280848 | G199: 2784.2 | H199: 77.84 | J199: 2020-09-29 | K199: -0.1432619336 | L199: -0.04593343785 | M199: -0.08622251189 | N199: 0.02374893734 | O199: -0.09774387359
B200: 2020-09-30 | C200: 86.0052761 | D200: 97.31360868 | E200: 91.37774881 | F200: 2318.454006 | G200: 2794.88 | H200: 77.68 | J200: 2020-09-30 | K200: -0.139947239 | L200: -0.0268639132 | M200: -0.08622251189 | N200: 0.02382540349 | O200: -0.09428288105
B201: 2020-10-01 | C201: 85.82849238 | D201: 97.31360868 | E201: 91.37774881 | F201: 2318.627177 | G201: 2789.15 | H201: 77.9 | J201: 2020-10-01 | K201: -0.1417150762 | L201: -0.0268639132 | M201: -0.08622251189 | N201: 0.02390187535 | O201: -0.09613976188
... 290 more rows

Sheet Liquidez
B2: Planilha de fundamentos - CPFF11
B3: Novembro/2021
A4: Capa
B5: CPFF11 - Liquidez | C5: Volume Negociado | D5: Média Diária | E5: Cotas Negociadas | F5: Giro | G5: Valor de Mercado | H5: Número de Negócios | I5: Média Diária | J5: Presença em pregões | K5: Número de Cotistas | L5: MoM | N5: Volume mensal negociado, últimos 12 meses (R$ MM)
B6: 2019-12-31 | G6: 240000000
B7: 2020-01-31 | C7: 55696431.64 | D7: 2531655.984 | E7: 519496.791 | F7: 0.2279650935 | G7: 248640000 | H7: 53569 | I7: 2434.954545 | J7: 1 | K7: 10115 | L7: 0.036
B8: 2020-02-28 | C8: 15864018.71 | D8: 881334.3728 | E8: 153964.7897 | F8: 0.06486759368 | G8: 240480000 | H8: 6181 | I8: 343.3888889 | J8: 1 | K8: 9923 | L8: -0.01898171033
B9: 2020-03-31 | C9: 15071969.02 | D9: 685089.5009 | E9: 179174.1786 | F9: 0.07008914165 | G9: 189600000 | H9: 6500 | I9: 295.4545455 | J9: 1 | K9: 9683 | L9: -0.024186234
B10: 2020-04-30 | C10: 5327703.09 | D10: 266385.1545 | E10: 65452.10403 | F10: 0.02792297217 | G10: 192000000 | H10: 2449 | I10: 122.45 | J10: 1 | K10: 9600 | L10: -0.008571723639
B11: 2020-05-29 | C11: 5076284.96 | D11: 253814.248 | E11: 66080.68212 | F11: 0.02694418769 | G11: 184800000 | H11: 5135 | I11: 256.75 | J11: 1 | K11: 9440 | L11: -0.01666666667
B12: 2020-06-30 | C12: 12312003.27 | D12: 586285.87 | E12: 154920.8587 | F12: 0.06542117404 | G12: 191592000 | H12: 9459 | I12: 450.4285714 | J12: 1 | K12: 9401 | L12: -0.004131355932
B13: 2020-07-31 | C13: 13673326.79 | D13: 594492.4691 | E13: 167039.2765 | F13: 0.05326290902 | G13: 321835713.3 | H13: 4533 | I13: 197.0869565 | J13: 1 | K13: 9400 | L13: -0.0001063716626
B14: 2020-08-31 | C14: 15280499.3 | D14: 727642.8238 | E14: 190953.9562 | F14: 0.04800973442 | G14: 314722663.2 | H14: 23905 | I14: 1138.333333 | J14: 1 | K14: 9372 | L14: -0.002978723404
B15: 2020-09-30 | C15: 16679122.01 | D15: 794243.9052 | E15: 212966.3899 | F15: 0.05350973061 | G15: 308682531.3 | H15: 8273 | I15: 393.952381 | J15: 1 | K15: 9224 | L15: -0.01579172002
B16: 2020-10-30 | C16: 21762204.54 | D16: 1036295.454 | E16: 277649.9686 | F16: 0.07053660051 | G16: 308364629.6 | H16: 13844 | I16: 659.2380952 | J16: 1 | K16: 9300 | L16: 0.008239375542
B17: 2020-11-30 | C17: 16929371.34 | D17: 846468.567 | E17: 213389.6092 | F17: 0.05433335731 | G17: 314802138.6 | H17: 7672 | I17: 383.6 | J17: 1 | K17: 9346 | L17: 0.004946236559
B18: 2020-12-29 | C18: 25851447.26 | D18: 1292572.363 | E18: 324575.2792 | F18: 0.08146155944 | G18: 319888565.5 | H18: 16534 | I18: 826.7 | J18: 1 | K18: 9533 | L18: 0.02000855981
B19: 2021-01-29 | C19: 35770368.49 | D19: 1882650.973 | E19: 439985.6289 | F19: 0.1104831909 | G19: 327637418.9 | H19: 26851 | I19: 1413.210526 | J19: 1 | K19: 9852 | L19: 0.03346270849
B20: 2021-02-26 | C20: 25978157.94 | D20: 1443230.997 | E20: 308920.54 | F20: 0.07862185083 | G20: 333200698.3 | H20: 24250 | I20: 1347.222222 | J20: 1 | K20: 10529 | L20: 0.06871701177
B21: 2021-03-31 | C21: 28475337.93 | D21: 1238058.171 | E21: 345698.5265 | F21: 0.08653329999 | G21: 324935254.7 | H21: 28592 | I21: 1243.130435 | J21: 1 | K21: 10828 | L21: 0.02839775857
B22: 2021-04-30 | C22: 25515480.85 | D22: 1275774.042 | E22: 309156.7667 | F22: 0.07822347743 | G22: 327438730.4 | H22: 32539 | I22: 1626.95 | J22: 1 | K22: 11417 | L22: 0.05439601034
B23: 2021-05-31 | C23: 27473262.73 | D23: 1308250.606 | E23: 332625.2622 | F23: 0.08400036711 | G23: 326683713.9 | H23: 34021 | I23: 1620.047619 | J23: 1 | K23: 11974 | L23: 0.04878689673
B24: 2021-06-30 | C24: 27225193.53 | D24: 1296437.787 | E24: 329365.4775 | F24: 0.08360248405 | G24: 324617353 | H24: 24290 | I24: 1156.666667 | J24: 1 | K24: 12502 | L24: 0.04409554034
B25: 2021-07-30 | C25: 18518664.71 | D25: 881841.1767 | E25: 226845.136 | F25: 0.05690487129 | G25: 326246599.1 | H25: 27412 | I25: 1305.333333 | J25: 1 | K25: 12846 | L25: 0.0275155975
B26: 2021-08-31 | C26: 30329794.17 | D26: 1378627.008 | E26: 375677.2956 | F26: 0.09382294692 | G26: 320285942.6 | H26: 39788 | I26: 1808.545455 | J26: 1 | K26: 12996 | L26: 0.01167678655
B27: 2021-09-30 | C27: 17111673.37 | D27: 814841.589 | E27: 215498.0425 | F27: 0.04553181673 | G27: 431349928.7 | H27: 31562 | I27: 1502.952381 | J27: 1 | K27: 13180 | L27: 0.01415820252
B28: 2021-10-29 | C28: 18764433.75 | D28: 938221.6875 | E28: 241340.0953 | F28: 0.04454564487 | G28: 411131252.3 | H28: 38630 | I28: 1931.5 | J28: 1 | K28: 13267 | L28: 0.00660091047
B29: 2021-11-30 | C29: 22936295.97 | D29: 1146814.799 | E29: 320484.8006 | F29: 0.05827563153 | G29: 376034682 | H29: 32697 | I29: 1634.85 | J29: 1 | K29: 13088 | L29: -0.01349212331
B30: LTM | C30: 303950110.7 | D30: 1241443.433 | E30: 3770172.851 | F30: 0.07516726176 | G30: 345787511.6 | H30: 357166 | I30: 1451.42572 | J30: 1 | K30: 11834.33333 | L30: 0.4407812984

Sheet Glossário
B2: Planilha de fundamentos - CPFF11
B3: Novembro/2021
A4: Capa
B5: Termos | D5: Descrição | F5: Termos | H5: Descrição
B7: AFOF11 | D7: Alianza FOFII | F7: Valor de Mercado (R$/Cota) | H7: Valor da cota no mercado secundário no fechamento do último dia do mês
B8: AIEC11 | D8: Autonomy Edificios Corporativos FII | F8: Valor Patrimonial (R$/Cota) | H8: Valor da cota patrimonial no último dia do mês
B9: BBFO11 | D9: BB Fundo de Fundos | F9: Valor de Mercado do Fundo | H9: Valor da cota no secundário multiplicado pelo número total de cotas
B10: BBPO11 | D10: BB Progressivo II | F10: Dividend Yield (Cota Mercado) | H10: Última valor distribuído anualizado dividido pela cota de fechamento do mês
B11: BLCP11 | D11: BLUE CAP LOGÍSTICA | F11: Dividend Yield (Cota de Emissão) | H11: Última valor distribuído anualizado dividido pela cota da última emissão
B12: BLMO11 | D12: BlueMacaw Office Fund ll | F12: ABL | H12: Área Bruta Locável, área (m²) total de um imóvel disponível para locação
B13: BMLC11 | D13: Brascan Lajes Corporativas | F13: Oferta 400 | H13: Oferta de valores mobiliários que segue a ICVM 400, disponível ao público em geral
B14: BPFF11 | D14: Brasil Plural Absoluto | F14: Oferta 476 | H14: Oferta de valores mobiliários que segue a ICVM 476, distribuída com esforços restritos para investidores profissionais
B15: BPML11 | D15: BTG Pactual Shoppings | F15: Block Trade | H15: Operação no mercado secundário em grandes volumes diretamente ou via leilão
B16: BRCO11 | D16: Bresco Logística FII | F16: Cota Patrimonial Ajustada | H16: Cota Patrimonial desconsiderando os custos da emissão primária e IR sobre ganho de capital
B17: BRCR11 | D17: BTG Pactual Corporate Office Fund | F17: Posições “quórum qualificado” | H17: Posições acima de 25% do PL que possibilita a aprovação de quórum qualificado
B18: BRIP11 | D18: Brio Real Estate III | F18: Posições “quórum relevante” | H18: Posições acima de 5% do PL que possibilita convocação de assembleias
B19: CBOP11 | D19: Castello Branco Office Park
B20: CNES11 | D20: CENESP
B21: CRFF11 | D21: CAIXA RIO BRAVO FOFII II FII - CRFF11
B22: CXRI11 | D22: Caixa Rio Bravo
B23: CXTL11 | D23: Caixa TRX Logística Renda
B24: EQIR11 | D24: EQI Recebíveis imobiliários FII
B25: EVBI11 | D25: VBI Consumo Essencial
B26: FATN11 | D26: Athena l FII
B27: FMOF11 | D27: Memorial Office
B28: FVPQ11 | D28: Via Parque Shopping
B29: GALG11 | D29: Guardian Logística
B30: GAME11 | D30: GUARDIAN MULTIESTRATÉGIA IMOBILIÁRIA I
B31: GCFF11 | D31: Galapagos Fundo de Fundos Fii
B32: GCRI11 | D32: Galapagos Recebíveis Imobiliários FII
B33: GSFI11 | D33: General Shopping e Outlets do Brasil
B34: GTLG11 | D34: GTIS Brazil Logistics FII
B35: GTWR11 | D35: GREEN TOWERS FII - GTWR11
B36: HBRH11 | D36: MULTI RENDA URBANA
B37: HGFF11 | D37: CSHG IMOBILIÁRIO FOF FII - HGFF11
B38: HOSI11 | D38: Housi FII
B39: HREC11 | D39: Hedge Recebíveis Imobiliários FII
B40: HSLG11 | D40: HSI Logística FII
B41: HSML11 | D41: HSI MALLS
B42: HSRE11 | D42: HSI Renda Imobiliária
B43: IBFF11 | D43: FOF INTEGRAL BREI FII - IBFF11
B44: IDFI11 | D44: Unidades Autônomas
B45: JFLL11 | D45: JFL Living FII
B46: JPPA11 | D46: JPP ALLOCATON MOGNO
B47: JRDM11 | D47: Shoping Jardim Sul
B48: LASC11 | D48: LEGATUS SHOPPINGS
B49: MALL11 | D49: MALLS BRASIL PLURAL FUNDO DE INVESTIMENTO IMOBILIÁRIO
B50: MAXR11 | D50: Max Retail
B51: MGCR11 | D51: Mogno CRI High Grade
B52: MGFF11 | D52: Mogno Fundo de Fundos
B53: MGHT11 | D53: Mogno Hotéis
B54: MGLG11 | D54: Mogno Logística FII
B55: MORE11 | D55: More Real Estate FOF
B56: NAVT11 | D56: NAVI Total Return
B57: NEWL11 | D57: Newport Logística
B58: NEWU11 | D58: Newport Renda Urbana
B59: OULG11 | D59: OURINVEST LOGÍSTICA FII - OULG11
B60: PATC11 | D60: Pátria Edifícios Corporativos
B61: PATL11 | D61: Patria Logística
B62: PLOG11 | D62: Plural Logístico FII
B63: PNDL11 | D63: Panorama Desenvolvimento Logístico FII
B64: PNPR11 | D64: Panorama Properties FII
B65: PQDP11 | D65: Parque Dom Pedro Shopping Center
B66: PRSV11 | D66: Presidente Vargas
B67: QAGR11 | D67: Quasar Agro
B68: RBFF11 | D68: RIO BRAVO IFIX FUNDO DE FUNDOS FII - RBFF11
B69: RBGS11 | D69: RB Capital General Shopping Sulacap
B70: RBHG11 | D70: Rio Bravo Crédito Imobiliário IV
B71: RBRL11 | D71: RBR Logística
B72: RBRS11 | D72: RIO BRAVO RENDA RESIDENCIAL FII - RBRS11
B73: RCRB11 | D73: Rio Bravo Renda Corporativa
B74: RMAI11 | D74: REAG MULTI ATIVOS IMOBILIÁRIOS FII - RMAI11
B75: RRCI11 | D75: RB Capital Recebíveis Imobiliários FII
B76: SADI11 | D76: SANTANDER PAPÉIS IMOBILIÁRIOS CDI FII - SADI11
B77: SARE11 | D77: Santander Renda de Alugueis
B78: SEQR11 | D78: Sequoia III Renda Imobiliária
B79: SPVJ11 | D79: FII SuccesPar Varejo
B80: TEPP11 | D80: Tellux Properties
B81: TRXF11 | D81: TRX Real Estate
B82: TSER11 | D82: Tishman Speyer Renda Corporativa FII
B83: VGHF11 | D83: Valora Hedge Fund FII
B84: VIFI11 | D84: Vinci Instrumentos Financeiros
B85: VISC11 | D85: Vinci Shopping Centers
B86: VIUR11 | D86: Vinci Imóveis Urbanos FII
B87: VOTS11 | D87: Votorantim Securities Master
B88: VSHO11 | D88: Votorantim Shopping
B89: VVPR11 | D89: V2 FII
B90: XPEX11 | D90: XP Exeter Desenvolvimento Logístico
B91: XPHT11 | D91: XP Hotéis (snr)
B92: XPIN11 | D92: XP Industrial
B93: XPIZ11 | D93: XP IDEA!ZARVOS FII
B94: XPPR11 | D94: XP Properties
B95: XTED11 | D95: TRX Edifícios Corporativos
